Workbook

Sheet 2017 DUOS Ex GST
B2: Schedule of Indicative Distribution Use of System (DUOS) Tariffs: 1 January 2017 (GST Exclusive)
E4: Network Tariff Component | R4: Eligibility (consumption/ category) | T4: Minimum Chargeable Rolling Demand | U4: Minimum Chargeable Demand
B5: Description | C5: Tariff Code | D5: PFIT (F) TFIT (T) | E5: Standing Charge (c/day) | F5: Summer Peak Energy (c/kWh) | G5: Non Summer Peak Energy Block 1 (c/kWh) | H5: Non Summer Peak Energy Block 2 (c/kWh) | I5: Summer Shoulder Energy (c/kWh) | J5: Non Summer Shoulder Energy (c/kWh) | K5: Off Peak Energy (c/kWh) | L5: Rolling Peak Demand c/kVA/day | M5: Summer Demand Incentive Charge c/kW/day or c/kVA/day | N5: Summer Demand Max kW c/KW/day | O5: Non-summer Demand Max kW c/KW/day | P5: Summer Demand Overrun Max kW c/KW/day | Q5: Non-summer Demand Overrun Max kW c/KW/day | R5: kVA | S5: MWh pa | T5: kVA | U5: kW
B6: Low voltage small 1 rate | C6: LVS1R | D6: F | E6: 6.652 | F6: 8.202 | G6: 5.28 | H6: 0 | I6: 0 | J6: 0 | K6: 0 | L6: 0 | M6: 0 | N6: 0 | O6: 0 | P6: 0 | Q6: 0 | R6: NA | S6: <20
B7: Low voltage small 2 rate* | C7: LVS2R* | E7: 13.586 | F7: 9.751 | G7: 7.396 | H7: 0 | I7: 0 | J7: 0 | K7: 1.691 | L7: 0 | M7: 0 | N7: 0 | O7: 0 | P7: 0 | Q7: 0
B8: Dedicated circuit** | C8: LVDed** | E8: 0 | F8: 0 | G8: 0 | H8: 0 | I8: 0 | J8: 0 | K8: 1.871 | L8: 0 | M8: 0 | N8: 0 | O8: 0 | P8: 0 | Q8: 0 | R8: NA | S8: <20 (on LVS1R)
B9: Unmetered supplies | C9: UnMet | E9: 0 | F9: 8.197 | G9: 5.996 | H9: 0 | I9: 0 | J9: 0 | K9: 1.478 | L9: 0 | M9: 0 | N9: 0 | O9: 0 | P9: 0 | Q9: 0
B10: Winter Energy Tariff* | C10: WET2Step* | E10: 8.567 | F10: 6.389 | G10: 4.734 | H10: 1.774 | I10: 0 | J10: 0 | K10: 0 | L10: 0 | M10: 0 | N10: 0 | O10: 0 | P10: 0 | Q10: 0
B11: Reverse cycle airconditioning time of use* | C11: RCACkWTOU* | E11: 0 | F11: 5.553 | G11: 1.396 | H11: 0 | I11: 0 | J11: 0 | K11: 1.371 | L11: 0 | M11: 69.767 | N11: 0 | O11: 0 | P11: 0 | Q11: 0
B12: Low voltage medium 1 rate | C12: LVM1R | D12: F | E12: 10.987 | F12: 9.657 | G12: 6.026 | H12: 0 | I12: 0 | J12: 0 | K12: 0 | L12: 0 | M12: 0 | N12: 0 | O12: 0 | P12: 0 | Q12: 0 | R12: NA | S12: >20 & <400
B13: Low voltage medium 2 rate 5 day* | C13: LVM2R5D* | E13: 21.03 | F13: 10.212 | G13: 7.653 | H13: 0 | I13: 0 | J13: 0 | K13: 1.907 | L13: 0 | M13: 0 | N13: 0 | O13: 0 | P13: 0 | Q13: 0
B14: Low voltage medium 2 rate 7 day* | C14: LVM2R7D* | E14: 22.387 | F14: 9.719 | G14: 7.526 | H14: 0 | I14: 0 | J14: 0 | K14: 1.773 | L14: 0 | M14: 0 | N14: 0 | O14: 0 | P14: 0 | Q14: 0
B15: Low voltage KW time of use* | C15: LVkWTOU* | E15: 0 | F15: 8.404 | G15: 4.924 | H15: 0 | I15: 0 | J15: 0 | K15: 1.957 | L15: 0 | M15: 40.245 | N15: 0 | O15: 0 | P15: 0 | Q15: 0
B16: Low voltage KW time of use - HOT* | C16: LVkWTOUH* | E16: 0 | F16: 7.317 | G16: 5.625 | H16: 0 | I16: 0 | J16: 0 | K16: 1.653 | L16: 0 | M16: 64.394 | N16: 0 | O16: 0 | P16: 0 | Q16: 0
B17: Low voltage large 1 rate* | C17: LVL1R* | E17: 12.657 | F17: 5.796 | G17: 4.573 | H17: 0 | I17: 0 | J17: 0 | K17: 0 | L17: 0 | M17: 0 | N17: 0 | O17: 0 | P17: 0 | Q17: 0
B18: Low voltage large 2 rate* | C18: LVL2R* | E18: 18.258 | F18: 9.074 | G18: 7.215 | H18: 0 | I18: 0 | J18: 0 | K18: 1.727 | L18: 0 | M18: 0 | N18: 0 | O18: 0 | P18: 0 | Q18: 0
B19: Low voltage large KVA time of use | C19: LVkVATOU | E19: 0 | F19: 1.305 | G19: 1.106 | H19: 0 | I19: 0 | J19: 0 | K19: 1.095 | L19: 13.172 | M19: 19.65 | N19: 0 | O19: 0 | P19: 0 | Q19: 0 | R19: >150 | S19: >400 | T19: 150
B20: Low voltage large KVA time of use - HOT* | C20: LVkVATOUH* | E20: 0 | F20: 1.139 | G20: 0.942 | H20: 0 | I20: 0 | J20: 0 | K20: 0.936 | L20: 13.107 | M20: 30.917 | N20: 0 | O20: 0 | P20: 0 | Q20: 0 | T20: 150
B21: High voltage KVA time of use | C21: HVkVATOU | E21: 0 | F21: 0.786 | G21: 0.694 | H21: 0 | I21: 0 | J21: 0 | K21: 0.682 | L21: 8.012 | M21: 11.003 | N21: 0 | O21: 0 | P21: 0 | Q21: 0 | R21: >150 | S21: >400 | T21: 1150
B22: High voltage KVA time of use - HOT* | C22: HVkVATOUH* | E22: 0 | F22: 0.814 | G22: 0.673 | H22: 0 | I22: 0 | J22: 0 | K22: 0.665 | L22: 9.241 | M22: 22.377 | N22: 0 | O22: 0 | P22: 0 | Q22: 0 | T22: 1150
B23: Subtransmission KVA time of use* | C23: SubTkVATOU* | E23: 0 | F23: 0.448 | G23: 0.349 | H23: 0 | I23: 0 | J23: 0 | K23: 0.302 | L23: 0.784 | M23: 1.149 | N23: 0 | O23: 0 | P23: 0 | Q23: 0 | T23: 11100
B24: Time of Day | C24: TOD | D24: F | E24: 6.328 | F24: 15.212 | G24: 8.965 | H24: 0 | I24: 4.287 | J24: 3.158 | K24: 2.933 | L24: 0 | M24: 0 | N24: 0 | O24: 0 | P24: 0 | Q24: 0 | R24: NA | S24: <20
B25: Time of Use | C25: TOU | D25: F | E25: 0 | F25: 9.096 | G25: 5.526 | H25: 0 | I25: 0 | J25: 0 | K25: 2.668 | L25: 0 | M25: 39.501 | N25: 0 | O25: 0 | P25: 0 | Q25: 0 | R25: NA | S25: >20 & <400
B26: Time of Day 9pm off-peak | C26: TOD9 | D26: F | E26: 6.564 | F26: 17.152 | G26: 10.659 | H26: 0 | I26: 5.317 | J26: 4.271 | K26: 4.063 | L26: 0 | M26: 0 | N26: 0 | O26: 0 | P26: 0 | Q26: 0 | R26: NA | S26: <20
B27: Time of Day Flexible | C27: TODFLEX | D27: F | E27: 7.069 | F27: 16.874 | G27: 9.686 | H27: 0 | I27: 4.582 | J27: 4.582 | K27: 3.885 | L27: 0 | M27: 0 | N27: 0 | O27: 0 | P27: 0 | Q27: 0 | R27: Residential Customer
B28: Low voltage KW 1 rate1 | C28: RESKW1R1 | D28: F | E28: 0 | F28: 2.628 | G28: 2.628 | H28: 2.628 | I28: 2.628 | J28: 2.628 | K28: 2.628 | L28: 0 | M28: 0 | N28: 25.32 | O28: 9.992 | P28: 0 | Q28: 0 | R28: NA | S28: <20 | U28: 1.5
B29: Low Voltage Medium kW Time of Use (Opt-in)2 | C29: LVMKWTOU2 | D29: F | E29: 0 | F29: 3.476 | G29: 3.476 | H29: 3.476 | I29: 3.476 | J29: 3.476 | K29: 3.476 | L29: 0 | M29: 0 | N29: 28.752 | O29: 19.168 | P29: 0 | Q29: 0 | R29: NA | S29: >20 & <400 | U29: 1.5
B30: Low Voltage Medium kW 1 rate (Mandatory)3 | C30: LVMKW1R3 | D30: F | E30: 0 | F30: 5.334 | G30: 5.334 | H30: 5.334 | I30: 5.334 | J30: 5.334 | K30: 5.334 | L30: 0 | M30: 0 | N30: 17.873 | O30: 11.915 | P30: 0 | Q30: 0 | R30: NA | S30: >40 & <400 | U30: 1.5
B33: * Tariff closed to premises not already taking supply under this tariff and new connections.
B34: ** Tariff only available in conjunction with the LVS1R tariff for new connections.
B35: Summer peak energy rates apply for period 1st November to 31st March (except TODFLEX which follows daylight savings periods) & RESKWTOU which applies from 1st December to 31st March.
B36: Non-summer peak energy rates apply for period 1st April to 31st October (except TODFLEX which follows non-daylight savings periods) & RESKWTOU which applies from 1st April to 30th November.
B37: PFIT (Premium Feed-In Tariff) is defined by an “F” added to the front of an existing distribution tariff ie. FTOD. The PFIT tariffs are closed to new connections.
B38: 1 RESKW1R csutomers transitioned from RESKWTOU on 1 April 2016.
B39: 2 LVMKWTOU available from 1st July 2016 for low voltage business customers with energy consumption between 20-40MWh per annum as an opt-in transition.
B40: 3 LVMKW1R available from 1st January 2017 for low voltage business customers with energy consumption between 40-400MWh per annum as a mandatory transition.

Sheet 2017 TUOS Ex GST
B2: Schedule of Indicative Transmission Use of System (TUOS) Tariffs: 1 January 2017 (GST Exclusive)
E4: Network Tariff Component | R4: Eligibility (consumption/ category) | T4: Minimum Chargeable Rolling Demand | U4: Minimum Chargeable Demand
B5: Description | C5: Tariff Code | D5: PFIT (F) TFIT (T) | E5: Standing Charge (c/day) | F5: Summer Peak Energy (c/kWh) | G5: Non Summer Peak Energy Block 1 (c/kWh) | H5: Non Summer Peak Energy Block 2 (c/kWh) | I5: Summer Shoulder Energy (c/kWh) | J5: Non Summer Shoulder Energy (c/kWh) | K5: Off Peak Energy (c/kWh) | L5: Rolling Peak Demand c/kVA/day | M5: Summer Demand Incentive Charge c/kW/day or c/kVA/day | N5: Summer Demand Max kW c/KW/day | O5: Non-summer Demand Max kW c/KW/day | P5: Summer Demand Overrun Max kW c/KW/day | Q5: Non-summer Demand Overrun Max kW c/KW/day | R5: kVA | S5: MWh pa | T5: kVA | U5: kW
B6: Low voltage small 1 rate | C6: LVS1R | D6: F | E6: 0 | F6: 2.07 | G6: 1.73 | H6: 0 | I6: 0 | J6: 0 | K6: 0 | L6: 0 | M6: 0 | N6: 0 | O6: 0 | P6: 0 | Q6: 0 | R6: NA | S6: <20
B7: Low voltage small 2 rate* | C7: LVS2R* | E7: 0 | F7: 3.476 | G7: 2.782 | H7: 0 | I7: 0 | J7: 0 | K7: 0 | L7: 0 | M7: 0 | N7: 0 | O7: 0 | P7: 0 | Q7: 0
B8: Dedicated circuit** | C8: LVDed** | E8: 0 | F8: 0 | G8: 0 | H8: 0 | I8: 0 | J8: 0 | K8: 0 | L8: 0 | M8: 0 | N8: 0 | O8: 0 | P8: 0 | Q8: 0 | R8: NA | S8: <20 (on LVS1R)
B9: Unmetered supplies | C9: UnMet | E9: 0 | F9: 3.257 | G9: 2.603 | H9: 0 | I9: 0 | J9: 0 | K9: 0 | L9: 0 | M9: 0 | N9: 0 | O9: 0 | P9: 0 | Q9: 0
B10: Winter Energy Tariff* | C10: WET2Step* | E10: 0 | F10: 2.316 | G10: 1.853 | H10: 1.853 | I10: 0 | J10: 0 | K10: 0 | L10: 0 | M10: 0 | N10: 0 | O10: 0 | P10: 0 | Q10: 0
B11: Reverse cycle airconditioning time of use* | C11: RCACkWTOU* | E11: 0 | F11: 15.694 | G11: 3.495 | H11: 0 | I11: 0 | J11: 0 | K11: 0 | L11: 0 | M11: 9.952 | N11: 0 | O11: 0 | P11: 0 | Q11: 0
B12: Low voltage medium 1 rate | C12: LVM1R | D12: F | E12: 0 | F12: 2.432 | G12: 1.942 | H12: 0 | I12: 0 | J12: 0 | K12: 0 | L12: 0 | M12: 0 | N12: 0 | O12: 0 | P12: 0 | Q12: 0 | R12: NA | S12: >20 & <400
B13: Low voltage medium 2 rate 5 day* | C13: LVM2R5D* | E13: 0 | F13: 2.106 | G13: 1.684 | H13: 0 | I13: 0 | J13: 0 | K13: 0 | L13: 0 | M13: 0 | N13: 0 | O13: 0 | P13: 0 | Q13: 0
B14: Low voltage medium 2 rate 7 day* | C14: LVM2R7D* | E14: 0 | F14: 2.507 | G14: 2.007 | H14: 0 | I14: 0 | J14: 0 | K14: 0 | L14: 0 | M14: 0 | N14: 0 | O14: 0 | P14: 0 | Q14: 0
B15: Low voltage KW time of use* | C15: LVkWTOU* | E15: 0 | F15: 1.951 | G15: 1.56 | H15: 0 | I15: 0 | J15: 0 | K15: 0 | L15: 0 | M15: 9.1 | N15: 0 | O15: 0 | P15: 0 | Q15: 0
B16: Low voltage KW time of use - HOT* | C16: LVkWTOUH* | E16: 0 | F16: 1.067 | G16: 0.853 | H16: 0 | I16: 0 | J16: 0 | K16: 0 | L16: 0 | M16: 9.563 | N16: 0 | O16: 0 | P16: 0 | Q16: 0
B17: Low voltage large 1 rate* | C17: LVL1R* | E17: 0 | F17: 2.425 | G17: 1.938 | H17: 0 | I17: 0 | J17: 0 | K17: 0 | L17: 0 | M17: 0 | N17: 0 | O17: 0 | P17: 0 | Q17: 0
B18: Low voltage large 2 rate* | C18: LVL2R* | E18: 0 | F18: 1.864 | G18: 1.493 | H18: 0 | I18: 0 | J18: 0 | K18: 0 | L18: 0 | M18: 0 | N18: 0 | O18: 0 | P18: 0 | Q18: 0
B19: Low voltage large KVA time of use | C19: LVkVATOU | E19: 0 | F19: 1.063 | G19: 0.853 | H19: 0 | I19: 0 | J19: 0 | K19: 0 | L19: 4.339 | M19: 5.931 | N19: 0 | O19: 0 | P19: 0 | Q19: 0 | R19: >150 | S19: >400 | T19: 150
B20: Low voltage large KVA time of use - HOT* | C20: LVkVATOUH* | E20: 0 | F20: 0.671 | G20: 0.538 | H20: 0 | I20: 0 | J20: 0 | K20: 0 | L20: 2.738 | M20: 7.2 | N20: 0 | O20: 0 | P20: 0 | Q20: 0 | T20: 150
B21: High voltage KVA time of use | C21: HVkVATOU | E21: 0 | F21: 0.747 | G21: 0.598 | H21: 0 | I21: 0 | J21: 0 | K21: 0 | L21: 4.969 | M21: 5.216 | N21: 0 | O21: 0 | P21: 0 | Q21: 0 | R21: >150 | S21: >400 | T21: 1150
B22: High voltage KVA time of use - HOT* | C22: HVkVATOUH* | E22: 0 | F22: 0.43 | G22: 0.342 | H22: 0 | I22: 0 | J22: 0 | K22: 0 | L22: 2.849 | M22: 5.751 | N22: 0 | O22: 0 | P22: 0 | Q22: 0 | T22: 1150
B23: Subtransmission KVA time of use* | C23: SubTkVATOU* | E23: 0 | F23: 0.504 | G23: 0.406 | H23: 0 | I23: 0 | J23: 0 | K23: 0 | L23: 3.572 | M23: 4.334 | N23: 0 | O23: 0 | P23: 0 | Q23: 0 | T23: 11100
B24: Time of Day | C24: TOD | D24: F | E24: 0 | F24: 3.353 | G24: 2.846 | H24: 0 | I24: 2.846 | J24: 2.513 | K24: 0 | L24: 0 | M24: 0 | N24: 0 | O24: 0 | P24: 0 | Q24: 0 | R24: NA | S24: <20
B25: Time of Use | C25: TOU | D25: F | E25: 0 | F25: 2.491 | G25: 1.144 | H25: 0 | I25: 0 | J25: 0 | K25: 0 | L25: 0 | M25: 6.527 | N25: 0 | O25: 0 | P25: 0 | Q25: 0 | R25: NA | S25: >20 & <400
B26: Time of Day 9pm off-peak | C26: TOD9 | D26: F | E26: 0 | F26: 4.5 | G26: 4.183 | H26: 0 | I26: 4.183 | J26: 3.975 | K26: 0 | L26: 0 | M26: 0 | N26: 0 | O26: 0 | P26: 0 | Q26: 0 | R26: NA | S26: <20
B27: Time of Day Flexible | C27: TODFLEX | D27: F | E27: 0 | F27: 3.805 | G27: 3.549 | H27: 0 | I27: 1.901 | J27: 1.677 | K27: 0 | L27: 0 | M27: 0 | N27: 0 | O27: 0 | P27: 0 | Q27: 0 | R27: Residential Customer
B28: Low voltage KW 1 rate1 | C28: RESKW1R1 | D28: F | E28: 0 | F28: 0.699 | G28: 0.699 | H28: 0.699 | I28: 0.699 | J28: 0.699 | K28: 0.699 | L28: 0 | M28: 0 | N28: 5.238 | O28: 3.405 | P28: 0 | Q28: 0 | R28: NA | S28: <20 | U28: 1.5
B29: Low Voltage Medium kW Time of Use (Opt-in)2 | C29: LVMKWTOU2 | D29: F | E29: 0 | F29: 0.884 | G29: 0.884 | H29: 0.884 | I29: 0.884 | J29: 0.884 | K29: 0.884 | L29: 0 | M29: 0 | N29: 7.31 | O29: 4.874 | P29: 0 | Q29: 0 | R29: NA | S29: >20 & <400 | U29: 1.5
B30: Low Voltage Medium kW 1 rate (Mandatory)3 | C30: LVMKW1R3 | D30: F | E30: 0 | F30: 1.332 | G30: 1.332 | H30: 1.332 | I30: 1.332 | J30: 1.332 | K30: 1.332 | L30: 0 | M30: 0 | N30: 4.464 | O30: 2.976 | P30: 0 | Q30: 0 | R30: NA | S30: >40 & <400 | U30: 1.5
B33: * Tariff closed to premises not already taking supply under this tariff and new connections.
B34: ** Tariff only available in conjunction with the LVS1R tariff for new connections.
B35: Summer peak energy rates apply for period 1st November to 31st March (except TODFLEX which follows daylight savings periods) & RESKWTOU which applies from 1st December to 31st March.
B36: Non-summer peak energy rates apply for period 1st April to 31st October (except TODFLEX which follows non-daylight savings periods) & RESKWTOU which applies from 1st April to 30th November.
B37: PFIT (Premium Feed-In Tariff) is defined by an “F” added to the front of an existing distribution tariff ie. FTOD. The PFIT tariffs are closed to new connections.
B38: 1 RESKW1R csutomers transitioned from RESKWTOU on 1 April 2016.
B39: 2 LVMKWTOU available from 1st July 2016 for low voltage business customers with energy consumption between 20-40MWh per annum as an opt-in transition.
B40: 3 LVMKW1R available from 1st January 2017 for low voltage business customers with energy consumption between 40-400MWh per annum as a mandatory transition.

Sheet 2017 NUOS Ex GST
B2: Schedule of Indicative Network Use of System (NUOS) Tariffs: 1 January 2017 (GST Exclusive)
E4: Network Tariff Component | R4: Eligibility (consumption/ category) | T4: Minimum Chargeable Rolling Demand | U4: Minimum Chargeable Demand
B5: Description | C5: Tariff Code | D5: PFIT (F) TFIT (T) | E5: Standing Charge (c/day) | F5: Summer Peak Energy (c/kWh) | G5: Non Summer Peak Energy Block 1 (c/kWh) | H5: Non Summer Peak Energy Block 2 (c/kWh) | I5: Summer Shoulder Energy (c/kWh) | J5: Non Summer Shoulder Energy (c/kWh) | K5: Off Peak Energy (c/kWh) | L5: Rolling Peak Demand c/kVA/day | M5: Summer Demand Incentive Charge c/kW/day or c/kVA/day | N5: Summer Demand Max kW c/KW/day | O5: Non-summer Demand Max kW c/KW/day | P5: Summer Demand Overrun Max kW c/KW/day | Q5: Non-summer Demand Overrun Max kW c/KW/day | R5: kVA | S5: MWh pa | T5: kVA | U5: kW
B6: Low voltage small 1 rate | C6: LVS1R | D6: F | E6: 6.652 | F6: 10.272 | G6: 7.01 | H6: 0 | I6: 0 | J6: 0 | K6: 0 | L6: 0 | M6: 0 | N6: 0 | O6: 0 | P6: 0 | Q6: 0 | R6: NA | S6: <20
B7: Low voltage small 2 rate* | C7: LVS2R* | E7: 13.586 | F7: 13.227 | G7: 10.178 | H7: 0 | I7: 0 | J7: 0 | K7: 1.691 | L7: 0 | M7: 0 | N7: 0 | O7: 0 | P7: 0 | Q7: 0
B8: Dedicated circuit** | C8: LVDed** | E8: 0 | F8: 0 | G8: 0 | H8: 0 | I8: 0 | J8: 0 | K8: 1.871 | L8: 0 | M8: 0 | N8: 0 | O8: 0 | P8: 0 | Q8: 0 | R8: NA | S8: <20 (on LVS1R)
B9: Unmetered supplies | C9: UnMet | E9: 0 | F9: 11.454 | G9: 8.599 | H9: 0 | I9: 0 | J9: 0 | K9: 1.478 | L9: 0 | M9: 0 | N9: 0 | O9: 0 | P9: 0 | Q9: 0
B10: Winter Energy Tariff* | C10: WET2Step* | E10: 8.567 | F10: 8.705 | G10: 6.587 | H10: 3.627 | I10: 0 | J10: 0 | K10: 0 | L10: 0 | M10: 0 | N10: 0 | O10: 0 | P10: 0 | Q10: 0
B11: Reverse cycle airconditioning time of use* | C11: RCACkWTOU* | E11: 0 | F11: 21.247 | G11: 4.891 | H11: 0 | I11: 0 | J11: 0 | K11: 1.371 | L11: 0 | M11: 79.719 | N11: 0 | O11: 0 | P11: 0 | Q11: 0
B12: Low voltage medium 1 rate | C12: LVM1R | D12: F | E12: 10.987 | F12: 12.089 | G12: 7.968 | H12: 0 | I12: 0 | J12: 0 | K12: 0 | L12: 0 | M12: 0 | N12: 0 | O12: 0 | P12: 0 | Q12: 0 | R12: NA | S12: >20 & <400
B13: Low voltage medium 2 rate 5 day* | C13: LVM2R5D* | E13: 21.03 | F13: 12.318 | G13: 9.337 | H13: 0 | I13: 0 | J13: 0 | K13: 1.907 | L13: 0 | M13: 0 | N13: 0 | O13: 0 | P13: 0 | Q13: 0
B14: Low voltage medium 2 rate 7 day* | C14: LVM2R7D* | E14: 22.387 | F14: 12.226 | G14: 9.533 | H14: 0 | I14: 0 | J14: 0 | K14: 1.773 | L14: 0 | M14: 0 | N14: 0 | O14: 0 | P14: 0 | Q14: 0
B15: Low voltage KW time of use* | C15: LVkWTOU* | E15: 0 | F15: 10.355 | G15: 6.484 | H15: 0 | I15: 0 | J15: 0 | K15: 1.957 | L15: 0 | M15: 49.345 | N15: 0 | O15: 0 | P15: 0 | Q15: 0
B16: Low voltage KW time of use - HOT* | C16: LVkWTOUH* | E16: 0 | F16: 8.384 | G16: 6.478 | H16: 0 | I16: 0 | J16: 0 | K16: 1.653 | L16: 0 | M16: 73.957 | N16: 0 | O16: 0 | P16: 0 | Q16: 0
B17: Low voltage large 1 rate* | C17: LVL1R* | E17: 12.657 | F17: 8.221 | G17: 6.511 | H17: 0 | I17: 0 | J17: 0 | K17: 0 | L17: 0 | M17: 0 | N17: 0 | O17: 0 | P17: 0 | Q17: 0
B18: Low voltage large 2 rate* | C18: LVL2R* | E18: 18.258 | F18: 10.938 | G18: 8.708 | H18: 0 | I18: 0 | J18: 0 | K18: 1.727 | L18: 0 | M18: 0 | N18: 0 | O18: 0 | P18: 0 | Q18: 0
B19: Low voltage large KVA time of use | C19: LVkVATOU | E19: 0 | F19: 2.368 | G19: 1.959 | H19: 0 | I19: 0 | J19: 0 | K19: 1.095 | L19: 17.511 | M19: 25.581 | N19: 0 | O19: 0 | P19: 0 | Q19: 0 | R19: >150 | S19: >400 | T19: 150
B20: Low voltage large KVA time of use - HOT* | C20: LVkVATOUH* | E20: 0 | F20: 1.81 | G20: 1.48 | H20: 0 | I20: 0 | J20: 0 | K20: 0.936 | L20: 15.845 | M20: 38.117 | N20: 0 | O20: 0 | P20: 0 | Q20: 0 | T20: 150
B21: High voltage KVA time of use | C21: HVkVATOU | E21: 0 | F21: 1.533 | G21: 1.292 | H21: 0 | I21: 0 | J21: 0 | K21: 0.682 | L21: 12.981 | M21: 16.219 | N21: 0 | O21: 0 | P21: 0 | Q21: 0 | R21: >150 | S21: >400 | T21: 1150
B22: High voltage KVA time of use - HOT* | C22: HVkVATOUH* | E22: 0 | F22: 1.244 | G22: 1.015 | H22: 0 | I22: 0 | J22: 0 | K22: 0.665 | L22: 12.09 | M22: 28.128 | N22: 0 | O22: 0 | P22: 0 | Q22: 0 | T22: 1150
B23: Subtransmission KVA time of use* | C23: SubTkVATOU* | E23: 0 | F23: 0.952 | G23: 0.755 | H23: 0 | I23: 0 | J23: 0 | K23: 0.302 | L23: 4.356 | M23: 5.483 | N23: 0 | O23: 0 | P23: 0 | Q23: 0 | T23: 11100
B24: Time of Day | C24: TOD | D24: F | E24: 6.328 | F24: 18.565 | G24: 11.811 | H24: 0 | I24: 7.133 | J24: 5.671 | K24: 2.933 | L24: 0 | M24: 0 | N24: 0 | O24: 0 | P24: 0 | Q24: 0 | R24: NA | S24: <20
B25: Time of Use | C25: TOU | D25: F | E25: 0 | F25: 11.587 | G25: 6.67 | H25: 0 | I25: 0 | J25: 0 | K25: 2.668 | L25: 0 | M25: 46.028 | N25: 0 | O25: 0 | P25: 0 | Q25: 0 | R25: NA | S25: >20 & <400
B26: Time of Day 9pm off-peak | C26: TOD9 | D26: F | E26: 6.564 | F26: 21.652 | G26: 14.842 | H26: 0 | I26: 9.5 | J26: 8.246 | K26: 4.063 | L26: 0 | M26: 0 | N26: 0 | O26: 0 | P26: 0 | Q26: 0 | R26: NA | S26: <20
B27: Time of Day Flexible | C27: TODFLEX | D27: F | E27: 7.069 | F27: 20.679 | G27: 13.235 | H27: 0 | I27: 6.483 | J27: 6.259 | K27: 3.885 | L27: 0 | M27: 0 | N27: 0 | O27: 0 | P27: 0 | Q27: 0 | R27: Residential Customer
B28: Low voltage KW 1 rate1 | C28: RESKW1R1 | D28: F | E28: 0 | F28: 3.327 | G28: 3.327 | H28: 3.327 | I28: 3.327 | J28: 3.327 | K28: 3.327 | L28: 0 | M28: 0 | N28: 30.558 | O28: 13.397 | P28: 0 | Q28: 0 | R28: NA | S28: <20 | U28: 1.5
B29: Low Voltage Medium kW Time of Use (Opt-in)2 | C29: LVMKWTOU2 | D29: F | E29: 0 | F29: 4.36 | G29: 4.36 | H29: 4.36 | I29: 4.36 | J29: 4.36 | K29: 4.36 | L29: 0 | M29: 0 | N29: 36.062 | O29: 24.042 | P29: 0 | Q29: 0 | R29: NA | S29: >20 & <400 | U29: 1.5
B30: Low Voltage Medium kW 1 rate (Mandatory)3 | C30: LVMKW1R3 | D30: F | E30: 0 | F30: 6.666 | G30: 6.666 | H30: 6.666 | I30: 6.666 | J30: 6.666 | K30: 6.666 | L30: 0 | M30: 0 | N30: 22.337 | O30: 14.891 | P30: 0 | Q30: 0 | R30: NA | S30: >40 & <400 | U30: 1.5
B33: * Tariff closed to premises not already taking supply under this tariff and new connections.
B34: ** Tariff only available in conjunction with the LVS1R tariff for new connections.
B35: Summer peak energy rates apply for period 1st November to 31st March (except TODFLEX which follows daylight savings periods) & RESKWTOU which applies from 1st December to 31st March.
B36: Non-summer peak energy rates apply for period 1st April to 31st October (except TODFLEX which follows non-daylight savings periods) & RESKWTOU which applies from 1st April to 30th November.
B37: PFIT (Premium Feed-In Tariff) is defined by an “F” added to the front of an existing distribution tariff ie. FTOD. The PFIT tariffs are closed to new connections.
B38: 1 RESKW1R csutomers transitioned from RESKWTOU on 1 April 2016.
B39: 2 LVMKWTOU available from 1st July 2016 for low voltage business customers with energy consumption between 20-40MWh per annum as an opt-in transition.
B40: 3 LVMKW1R available from 1st January 2017 for low voltage business customers with energy consumption between 40-400MWh per annum as a mandatory transition.

Sheet 2017 DUOS Incl GST
B2: Schedule of Indicative Distribution Use of System (DUOS) Tariffs: 1 January 2017 (GST Inclusive)
E4: Network Tariff Component | R4: Eligibility (consumption/ category) | T4: Minimum Chargeable Rolling Demand | U4: Minimum Chargeable Demand
B5: Description | C5: Tariff Code | D5: PFIT (F) TFIT (T) | E5: Standing Charge (c/day) | F5: Summer Peak Energy (c/kWh) | G5: Non Summer Peak Energy Block 1 (c/kWh) | H5: Non Summer Peak Energy Block 2 (c/kWh) | I5: Summer Shoulder Energy (c/kWh) | J5: Non Summer Shoulder Energy (c/kWh) | K5: Off Peak Energy (c/kWh) | L5: Rolling Peak Demand c/kVA/day | M5: Summer Demand Incentive Charge c/kW/day or c/kVA/day | N5: Summer Demand Max kW c/KW/day | O5: Non-summer Demand Max kW c/KW/day | P5: Summer Demand Overrun Max kW c/KW/day | Q5: Non-summer Demand Overrun Max kW c/KW/day | R5: kVA | S5: MWh pa | T5: kVA | U5: kW
B6: Low voltage small 1 rate | C6: LVS1R | D6: F | E6: ='2017 DUOS Ex GST'!E6*1.1 -> 7.3172 | F6: ='2017 DUOS Ex GST'!F6*1.1 -> 9.0222 | G6: ='2017 DUOS Ex GST'!G6*1.1 -> 5.808 | H6: ='2017 DUOS Ex GST'!H6*1.1 -> 0 | I6: ='2017 DUOS Ex GST'!I6*1.1 -> 0 | J6: ='2017 DUOS Ex GST'!J6*1.1 -> 0 | K6: ='2017 DUOS Ex GST'!K6*1.1 -> 0 | L6: ='2017 DUOS Ex GST'!L6*1.1 -> 0 | M6: ='2017 DUOS Ex GST'!M6*1.1 -> 0 | N6: ='2017 DUOS Ex GST'!N6*1.1 -> 0 | O6: ='2017 DUOS Ex GST'!O6*1.1 -> 0 | P6: ='2017 DUOS Ex GST'!P6*1.1 -> 0 | Q6: ='2017 DUOS Ex GST'!Q6*1.1 -> 0 | R6: NA | S6: <20
B7: Low voltage small 2 rate* | C7: LVS2R* | E7: ='2017 DUOS Ex GST'!E7*1.1 -> 14.9446 | F7: ='2017 DUOS Ex GST'!F7*1.1 -> 10.7261 | G7: ='2017 DUOS Ex GST'!G7*1.1 -> 8.1356 | H7: ='2017 DUOS Ex GST'!H7*1.1 -> 0 | I7: ='2017 DUOS Ex GST'!I7*1.1 -> 0 | J7: ='2017 DUOS Ex GST'!J7*1.1 -> 0 | K7: ='2017 DUOS Ex GST'!K7*1.1 -> 1.8601 | L7: ='2017 DUOS Ex GST'!L7*1.1 -> 0 | M7: ='2017 DUOS Ex GST'!M7*1.1 -> 0 | N7: ='2017 DUOS Ex GST'!N7*1.1 -> 0 | O7: ='2017 DUOS Ex GST'!O7*1.1 -> 0 | P7: ='2017 DUOS Ex GST'!P7*1.1 -> 0 | Q7: ='2017 DUOS Ex GST'!Q7*1.1 -> 0
B8: Dedicated circuit** | C8: LVDed** | E8: ='2017 DUOS Ex GST'!E8*1.1 -> 0 | F8: ='2017 DUOS Ex GST'!F8*1.1 -> 0 | G8: ='2017 DUOS Ex GST'!G8*1.1 -> 0 | H8: ='2017 DUOS Ex GST'!H8*1.1 -> 0 | I8: ='2017 DUOS Ex GST'!I8*1.1 -> 0 | J8: ='2017 DUOS Ex GST'!J8*1.1 -> 0 | K8: ='2017 DUOS Ex GST'!K8*1.1 -> 2.0581 | L8: ='2017 DUOS Ex GST'!L8*1.1 -> 0 | M8: ='2017 DUOS Ex GST'!M8*1.1 -> 0 | N8: ='2017 DUOS Ex GST'!N8*1.1 -> 0 | O8: ='2017 DUOS Ex GST'!O8*1.1 -> 0 | P8: ='2017 DUOS Ex GST'!P8*1.1 -> 0 | Q8: ='2017 DUOS Ex GST'!Q8*1.1 -> 0 | R8: NA | S8: <20 (on LVS1R)
B9: Unmetered supplies | C9: UnMet | E9: ='2017 DUOS Ex GST'!E9*1.1 -> 0 | F9: ='2017 DUOS Ex GST'!F9*1.1 -> 9.0167 | G9: ='2017 DUOS Ex GST'!G9*1.1 -> 6.5956 | H9: ='2017 DUOS Ex GST'!H9*1.1 -> 0 | I9: ='2017 DUOS Ex GST'!I9*1.1 -> 0 | J9: ='2017 DUOS Ex GST'!J9*1.1 -> 0 | K9: ='2017 DUOS Ex GST'!K9*1.1 -> 1.6258 | L9: ='2017 DUOS Ex GST'!L9*1.1 -> 0 | M9: ='2017 DUOS Ex GST'!M9*1.1 -> 0 | N9: ='2017 DUOS Ex GST'!N9*1.1 -> 0 | O9: ='2017 DUOS Ex GST'!O9*1.1 -> 0 | P9: ='2017 DUOS Ex GST'!P9*1.1 -> 0 | Q9: ='2017 DUOS Ex GST'!Q9*1.1 -> 0
B10: Winter Energy Tariff* | C10: WET2Step* | E10: ='2017 DUOS Ex GST'!E10*1.1 -> 9.4237 | F10: ='2017 DUOS Ex GST'!F10*1.1 -> 7.0279 | G10: ='2017 DUOS Ex GST'!G10*1.1 -> 5.2074 | H10: ='2017 DUOS Ex GST'!H10*1.1 -> 1.9514 | I10: ='2017 DUOS Ex GST'!I10*1.1 -> 0 | J10: ='2017 DUOS Ex GST'!J10*1.1 -> 0 | K10: ='2017 DUOS Ex GST'!K10*1.1 -> 0 | L10: ='2017 DUOS Ex GST'!L10*1.1 -> 0 | M10: ='2017 DUOS Ex GST'!M10*1.1 -> 0 | N10: ='2017 DUOS Ex GST'!N10*1.1 -> 0 | O10: ='2017 DUOS Ex GST'!O10*1.1 -> 0 | P10: ='2017 DUOS Ex GST'!P10*1.1 -> 0 | Q10: ='2017 DUOS Ex GST'!Q10*1.1 -> 0
B11: Reverse cycle airconditioning time of use* | C11: RCACkWTOU* | E11: ='2017 DUOS Ex GST'!E11*1.1 -> 0 | F11: ='2017 DUOS Ex GST'!F11*1.1 -> 6.1083 | G11: ='2017 DUOS Ex GST'!G11*1.1 -> 1.5356 | H11: ='2017 DUOS Ex GST'!H11*1.1 -> 0 | I11: ='2017 DUOS Ex GST'!I11*1.1 -> 0 | J11: ='2017 DUOS Ex GST'!J11*1.1 -> 0 | K11: ='2017 DUOS Ex GST'!K11*1.1 -> 1.5081 | L11: ='2017 DUOS Ex GST'!L11*1.1 -> 0 | M11: ='2017 DUOS Ex GST'!M11*1.1 -> 76.7437 | N11: ='2017 DUOS Ex GST'!N11*1.1 -> 0 | O11: ='2017 DUOS Ex GST'!O11*1.1 -> 0 | P11: ='2017 DUOS Ex GST'!P11*1.1 -> 0 | Q11: ='2017 DUOS Ex GST'!Q11*1.1 -> 0
B12: Low voltage medium 1 rate | C12: LVM1R | D12: F | E12: ='2017 DUOS Ex GST'!E12*1.1 -> 12.0857 | F12: ='2017 DUOS Ex GST'!F12*1.1 -> 10.6227 | G12: ='2017 DUOS Ex GST'!G12*1.1 -> 6.6286 | H12: ='2017 DUOS Ex GST'!H12*1.1 -> 0 | I12: ='2017 DUOS Ex GST'!I12*1.1 -> 0 | J12: ='2017 DUOS Ex GST'!J12*1.1 -> 0 | K12: ='2017 DUOS Ex GST'!K12*1.1 -> 0 | L12: ='2017 DUOS Ex GST'!L12*1.1 -> 0 | M12: ='2017 DUOS Ex GST'!M12*1.1 -> 0 | N12: ='2017 DUOS Ex GST'!N12*1.1 -> 0 | O12: ='2017 DUOS Ex GST'!O12*1.1 -> 0 | P12: ='2017 DUOS Ex GST'!P12*1.1 -> 0 | Q12: ='2017 DUOS Ex GST'!Q12*1.1 -> 0 | R12: NA | S12: >20 & <400
B13: Low voltage medium 2 rate 5 day* | C13: LVM2R5D* | E13: ='2017 DUOS Ex GST'!E13*1.1 -> 23.133 | F13: ='2017 DUOS Ex GST'!F13*1.1 -> 11.2332 | G13: ='2017 DUOS Ex GST'!G13*1.1 -> 8.4183 | H13: ='2017 DUOS Ex GST'!H13*1.1 -> 0 | I13: ='2017 DUOS Ex GST'!I13*1.1 -> 0 | J13: ='2017 DUOS Ex GST'!J13*1.1 -> 0 | K13: ='2017 DUOS Ex GST'!K13*1.1 -> 2.0977 | L13: ='2017 DUOS Ex GST'!L13*1.1 -> 0 | M13: ='2017 DUOS Ex GST'!M13*1.1 -> 0 | N13: ='2017 DUOS Ex GST'!N13*1.1 -> 0 | O13: ='2017 DUOS Ex GST'!O13*1.1 -> 0 | P13: ='2017 DUOS Ex GST'!P13*1.1 -> 0 | Q13: ='2017 DUOS Ex GST'!Q13*1.1 -> 0
B14: Low voltage medium 2 rate 7 day* | C14: LVM2R7D* | E14: ='2017 DUOS Ex GST'!E14*1.1 -> 24.6257 | F14: ='2017 DUOS Ex GST'!F14*1.1 -> 10.6909 | G14: ='2017 DUOS Ex GST'!G14*1.1 -> 8.2786 | H14: ='2017 DUOS Ex GST'!H14*1.1 -> 0 | I14: ='2017 DUOS Ex GST'!I14*1.1 -> 0 | J14: ='2017 DUOS Ex GST'!J14*1.1 -> 0 | K14: ='2017 DUOS Ex GST'!K14*1.1 -> 1.9503 | L14: ='2017 DUOS Ex GST'!L14*1.1 -> 0 | M14: ='2017 DUOS Ex GST'!M14*1.1 -> 0 | N14: ='2017 DUOS Ex GST'!N14*1.1 -> 0 | O14: ='2017 DUOS Ex GST'!O14*1.1 -> 0 | P14: ='2017 DUOS Ex GST'!P14*1.1 -> 0 | Q14: ='2017 DUOS Ex GST'!Q14*1.1 -> 0
B15: Low voltage KW time of use* | C15: LVkWTOU* | E15: ='2017 DUOS Ex GST'!E15*1.1 -> 0 | F15: ='2017 DUOS Ex GST'!F15*1.1 -> 9.2444 | G15: ='2017 DUOS Ex GST'!G15*1.1 -> 5.4164 | H15: ='2017 DUOS Ex GST'!H15*1.1 -> 0 | I15: ='2017 DUOS Ex GST'!I15*1.1 -> 0 | J15: ='2017 DUOS Ex GST'!J15*1.1 -> 0 | K15: ='2017 DUOS Ex GST'!K15*1.1 -> 2.1527 | L15: ='2017 DUOS Ex GST'!L15*1.1 -> 0 | M15: ='2017 DUOS Ex GST'!M15*1.1 -> 44.2695 | N15: ='2017 DUOS Ex GST'!N15*1.1 -> 0 | O15: ='2017 DUOS Ex GST'!O15*1.1 -> 0 | P15: ='2017 DUOS Ex GST'!P15*1.1 -> 0 | Q15: ='2017 DUOS Ex GST'!Q15*1.1 -> 0
B16: Low voltage KW time of use - HOT* | C16: LVkWTOUH* | E16: ='2017 DUOS Ex GST'!E16*1.1 -> 0 | F16: ='2017 DUOS Ex GST'!F16*1.1 -> 8.0487 | G16: ='2017 DUOS Ex GST'!G16*1.1 -> 6.1875 | H16: ='2017 DUOS Ex GST'!H16*1.1 -> 0 | I16: ='2017 DUOS Ex GST'!I16*1.1 -> 0 | J16: ='2017 DUOS Ex GST'!J16*1.1 -> 0 | K16: ='2017 DUOS Ex GST'!K16*1.1 -> 1.8183 | L16: ='2017 DUOS Ex GST'!L16*1.1 -> 0 | M16: ='2017 DUOS Ex GST'!M16*1.1 -> 70.8334 | N16: ='2017 DUOS Ex GST'!N16*1.1 -> 0 | O16: ='2017 DUOS Ex GST'!O16*1.1 -> 0 | P16: ='2017 DUOS Ex GST'!P16*1.1 -> 0 | Q16: ='2017 DUOS Ex GST'!Q16*1.1 -> 0
B17: Low voltage large 1 rate* | C17: LVL1R* | E17: ='2017 DUOS Ex GST'!E17*1.1 -> 13.9227 | F17: ='2017 DUOS Ex GST'!F17*1.1 -> 6.3756 | G17: ='2017 DUOS Ex GST'!G17*1.1 -> 5.0303 | H17: ='2017 DUOS Ex GST'!H17*1.1 -> 0 | I17: ='2017 DUOS Ex GST'!I17*1.1 -> 0 | J17: ='2017 DUOS Ex GST'!J17*1.1 -> 0 | K17: ='2017 DUOS Ex GST'!K17*1.1 -> 0 | L17: ='2017 DUOS Ex GST'!L17*1.1 -> 0 | M17: ='2017 DUOS Ex GST'!M17*1.1 -> 0 | N17: ='2017 DUOS Ex GST'!N17*1.1 -> 0 | O17: ='2017 DUOS Ex GST'!O17*1.1 -> 0 | P17: ='2017 DUOS Ex GST'!P17*1.1 -> 0 | Q17: ='2017 DUOS Ex GST'!Q17*1.1 -> 0
B18: Low voltage large 2 rate* | C18: LVL2R* | E18: ='2017 DUOS Ex GST'!E18*1.1 -> 20.0838 | F18: ='2017 DUOS Ex GST'!F18*1.1 -> 9.9814 | G18: ='2017 DUOS Ex GST'!G18*1.1 -> 7.9365 | H18: ='2017 DUOS Ex GST'!H18*1.1 -> 0 | I18: ='2017 DUOS Ex GST'!I18*1.1 -> 0 | J18: ='2017 DUOS Ex GST'!J18*1.1 -> 0 | K18: ='2017 DUOS Ex GST'!K18*1.1 -> 1.8997 | L18: ='2017 DUOS Ex GST'!L18*1.1 -> 0 | M18: ='2017 DUOS Ex GST'!M18*1.1 -> 0 | N18: ='2017 DUOS Ex GST'!N18*1.1 -> 0 | O18: ='2017 DUOS Ex GST'!O18*1.1 -> 0 | P18: ='2017 DUOS Ex GST'!P18*1.1 -> 0 | Q18: ='2017 DUOS Ex GST'!Q18*1.1 -> 0
B19: Low voltage large KVA time of use | C19: LVkVATOU | E19: ='2017 DUOS Ex GST'!E19*1.1 -> 0 | F19: ='2017 DUOS Ex GST'!F19*1.1 -> 1.4355 | G19: ='2017 DUOS Ex GST'!G19*1.1 -> 1.2166 | H19: ='2017 DUOS Ex GST'!H19*1.1 -> 0 | I19: ='2017 DUOS Ex GST'!I19*1.1 -> 0 | J19: ='2017 DUOS Ex GST'!J19*1.1 -> 0 | K19: ='2017 DUOS Ex GST'!K19*1.1 -> 1.2045 | L19: ='2017 DUOS Ex GST'!L19*1.1 -> 14.4892 | M19: ='2017 DUOS Ex GST'!M19*1.1 -> 21.615 | N19: ='2017 DUOS Ex GST'!N19*1.1 -> 0 | O19: ='2017 DUOS Ex GST'!O19*1.1 -> 0 | P19: ='2017 DUOS Ex GST'!P19*1.1 -> 0 | Q19: ='2017 DUOS Ex GST'!Q19*1.1 -> 0 | R19: >150 | S19: >400 | T19: 150
B20: Low voltage large KVA time of use - HOT* | C20: LVkVATOUH* | E20: ='2017 DUOS Ex GST'!E20*1.1 -> 0 | F20: ='2017 DUOS Ex GST'!F20*1.1 -> 1.2529 | G20: ='2017 DUOS Ex GST'!G20*1.1 -> 1.0362 | H20: ='2017 DUOS Ex GST'!H20*1.1 -> 0 | I20: ='2017 DUOS Ex GST'!I20*1.1 -> 0 | J20: ='2017 DUOS Ex GST'!J20*1.1 -> 0 | K20: ='2017 DUOS Ex GST'!K20*1.1 -> 1.0296 | L20: ='2017 DUOS Ex GST'!L20*1.1 -> 14.4177 | M20: ='2017 DUOS Ex GST'!M20*1.1 -> 34.0087 | N20: ='2017 DUOS Ex GST'!N20*1.1 -> 0 | O20: ='2017 DUOS Ex GST'!O20*1.1 -> 0 | P20: ='2017 DUOS Ex GST'!P20*1.1 -> 0 | Q20: ='2017 DUOS Ex GST'!Q20*1.1 -> 0 | T20: 150
B21: High voltage KVA time of use | C21: HVkVATOU | E21: ='2017 DUOS Ex GST'!E21*1.1 -> 0 | F21: ='2017 DUOS Ex GST'!F21*1.1 -> 0.8646 | G21: ='2017 DUOS Ex GST'!G21*1.1 -> 0.7634 | H21: ='2017 DUOS Ex GST'!H21*1.1 -> 0 | I21: ='2017 DUOS Ex GST'!I21*1.1 -> 0 | J21: ='2017 DUOS Ex GST'!J21*1.1 -> 0 | K21: ='2017 DUOS Ex GST'!K21*1.1 -> 0.7502 | L21: ='2017 DUOS Ex GST'!L21*1.1 -> 8.8132 | M21: ='2017 DUOS Ex GST'!M21*1.1 -> 12.1033 | N21: ='2017 DUOS Ex GST'!N21*1.1 -> 0 | O21: ='2017 DUOS Ex GST'!O21*1.1 -> 0 | P21: ='2017 DUOS Ex GST'!P21*1.1 -> 0 | Q21: ='2017 DUOS Ex GST'!Q21*1.1 -> 0 | R21: >150 | S21: >400 | T21: 1150
B22: High voltage KVA time of use - HOT* | C22: HVkVATOUH* | E22: ='2017 DUOS Ex GST'!E22*1.1 -> 0 | F22: ='2017 DUOS Ex GST'!F22*1.1 -> 0.8954 | G22: ='2017 DUOS Ex GST'!G22*1.1 -> 0.7403 | H22: ='2017 DUOS Ex GST'!H22*1.1 -> 0 | I22: ='2017 DUOS Ex GST'!I22*1.1 -> 0 | J22: ='2017 DUOS Ex GST'!J22*1.1 -> 0 | K22: ='2017 DUOS Ex GST'!K22*1.1 -> 0.7315 | L22: ='2017 DUOS Ex GST'!L22*1.1 -> 10.1651 | M22: ='2017 DUOS Ex GST'!M22*1.1 -> 24.6147 | N22: ='2017 DUOS Ex GST'!N22*1.1 -> 0 | O22: ='2017 DUOS Ex GST'!O22*1.1 -> 0 | P22: ='2017 DUOS Ex GST'!P22*1.1 -> 0 | Q22: ='2017 DUOS Ex GST'!Q22*1.1 -> 0 | T22: 1150
B23: Subtransmission KVA time of use* | C23: SubTkVATOU* | E23: ='2017 DUOS Ex GST'!E23*1.1 -> 0 | F23: ='2017 DUOS Ex GST'!F23*1.1 -> 0.4928 | G23: ='2017 DUOS Ex GST'!G23*1.1 -> 0.3839 | H23: ='2017 DUOS Ex GST'!H23*1.1 -> 0 | I23: ='2017 DUOS Ex GST'!I23*1.1 -> 0 | J23: ='2017 DUOS Ex GST'!J23*1.1 -> 0 | K23: ='2017 DUOS Ex GST'!K23*1.1 -> 0.3322 | L23: ='2017 DUOS Ex GST'!L23*1.1 -> 0.8624 | M23: ='2017 DUOS Ex GST'!M23*1.1 -> 1.2639 | N23: ='2017 DUOS Ex GST'!N23*1.1 -> 0 | O23: ='2017 DUOS Ex GST'!O23*1.1 -> 0 | P23: ='2017 DUOS Ex GST'!P23*1.1 -> 0 | Q23: ='2017 DUOS Ex GST'!Q23*1.1 -> 0 | T23: 11100
B24: Time of Day | C24: TOD | D24: F | E24: ='2017 DUOS Ex GST'!E24*1.1 -> 6.9608 | F24: ='2017 DUOS Ex GST'!F24*1.1 -> 16.7332 | G24: ='2017 DUOS Ex GST'!G24*1.1 -> 9.8615 | H24: ='2017 DUOS Ex GST'!H24*1.1 -> 0 | I24: ='2017 DUOS Ex GST'!I24*1.1 -> 4.7157 | J24: ='2017 DUOS Ex GST'!J24*1.1 -> 3.4738 | K24: ='2017 DUOS Ex GST'!K24*1.1 -> 3.2263 | L24: ='2017 DUOS Ex GST'!L24*1.1 -> 0 | M24: ='2017 DUOS Ex GST'!M24*1.1 -> 0 | N24: ='2017 DUOS Ex GST'!N24*1.1 -> 0 | O24: ='2017 DUOS Ex GST'!O24*1.1 -> 0 | P24: ='2017 DUOS Ex GST'!P24*1.1 -> 0 | Q24: ='2017 DUOS Ex GST'!Q24*1.1 -> 0 | R24: NA | S24: <20
B25: Time of Use | C25: TOU | D25: F | E25: ='2017 DUOS Ex GST'!E25*1.1 -> 0 | F25: ='2017 DUOS Ex GST'!F25*1.1 -> 10.0056 | G25: ='2017 DUOS Ex GST'!G25*1.1 -> 6.0786 | H25: ='2017 DUOS Ex GST'!H25*1.1 -> 0 | I25: ='2017 DUOS Ex GST'!I25*1.1 -> 0 | J25: ='2017 DUOS Ex GST'!J25*1.1 -> 0 | K25: ='2017 DUOS Ex GST'!K25*1.1 -> 2.9348 | L25: ='2017 DUOS Ex GST'!L25*1.1 -> 0 | M25: ='2017 DUOS Ex GST'!M25*1.1 -> 43.4511 | N25: ='2017 DUOS Ex GST'!N25*1.1 -> 0 | O25: ='2017 DUOS Ex GST'!O25*1.1 -> 0 | P25: ='2017 DUOS Ex GST'!P25*1.1 -> 0 | Q25: ='2017 DUOS Ex GST'!Q25*1.1 -> 0 | R25: NA | S25: >20 & <400
B26: Time of Day 9pm off-peak | C26: TOD9 | D26: F | E26: ='2017 DUOS Ex GST'!E26*1.1 -> 7.2204 | F26: ='2017 DUOS Ex GST'!F26*1.1 -> 18.8672 | G26: ='2017 DUOS Ex GST'!G26*1.1 -> 11.7249 | H26: ='2017 DUOS Ex GST'!H26*1.1 -> 0 | I26: ='2017 DUOS Ex GST'!I26*1.1 -> 5.8487 | J26: ='2017 DUOS Ex GST'!J26*1.1 -> 4.6981 | K26: ='2017 DUOS Ex GST'!K26*1.1 -> 4.4693 | L26: ='2017 DUOS Ex GST'!L26*1.1 -> 0 | M26: ='2017 DUOS Ex GST'!M26*1.1 -> 0 | N26: ='2017 DUOS Ex GST'!N26*1.1 -> 0 | O26: ='2017 DUOS Ex GST'!O26*1.1 -> 0 | P26: ='2017 DUOS Ex GST'!P26*1.1 -> 0 | Q26: ='2017 DUOS Ex GST'!Q26*1.1 -> 0 | R26: NA | S26: <20
B27: Time of Day Flexible | C27: TODFLEX | D27: F | E27: ='2017 DUOS Ex GST'!E27*1.1 -> 7.7759 | F27: ='2017 DUOS Ex GST'!F27*1.1 -> 18.5614 | G27: ='2017 DUOS Ex GST'!G27*1.1 -> 10.6546 | H27: ='2017 DUOS Ex GST'!H27*1.1 -> 0 | I27: ='2017 DUOS Ex GST'!I27*1.1 -> 5.0402 | J27: ='2017 DUOS Ex GST'!J27*1.1 -> 5.0402 | K27: ='2017 DUOS Ex GST'!K27*1.1 -> 4.2735 | L27: ='2017 DUOS Ex GST'!L27*1.1 -> 0 | M27: ='2017 DUOS Ex GST'!M27*1.1 -> 0 | N27: ='2017 DUOS Ex GST'!N27*1.1 -> 0 | O27: ='2017 DUOS Ex GST'!O27*1.1 -> 0 | P27: ='2017 DUOS Ex GST'!P27*1.1 -> 0 | Q27: ='2017 DUOS Ex GST'!Q27*1.1 -> 0 | R27: Residential Customer
B28: Low voltage KW 1 rate1 | C28: RESKW1R1 | D28: F | E28: ='2017 DUOS Ex GST'!E28*1.1 -> 0 | F28: ='2017 DUOS Ex GST'!F28*1.1 -> 2.8908 | G28: ='2017 DUOS Ex GST'!G28*1.1 -> 2.8908 | H28: ='2017 DUOS Ex GST'!H28*1.1 -> 2.8908 | I28: ='2017 DUOS Ex GST'!I28*1.1 -> 2.8908 | J28: ='2017 DUOS Ex GST'!J28*1.1 -> 2.8908 | K28: ='2017 DUOS Ex GST'!K28*1.1 -> 2.8908 | L28: ='2017 DUOS Ex GST'!L28*1.1 -> 0 | M28: ='2017 DUOS Ex GST'!M28*1.1 -> 0 | N28: ='2017 DUOS Ex GST'!N28*1.1 -> 27.852 | O28: ='2017 DUOS Ex GST'!O28*1.1 -> 10.9912 | P28: ='2017 DUOS Ex GST'!P28*1.1 -> 0 | Q28: ='2017 DUOS Ex GST'!Q28*1.1 -> 0 | R28: NA | S28: <20 | U28: 1.5
B29: Low Voltage Medium kW Time of Use (Opt-in)2 | C29: LVMKWTOU2 | D29: F | E29: ='2017 DUOS Ex GST'!E29*1.1 -> 0 | F29: ='2017 DUOS Ex GST'!F29*1.1 -> 3.8236 | G29: ='2017 DUOS Ex GST'!G29*1.1 -> 3.8236 | H29: ='2017 DUOS Ex GST'!H29*1.1 -> 3.8236 | I29: ='2017 DUOS Ex GST'!I29*1.1 -> 3.8236 | J29: ='2017 DUOS Ex GST'!J29*1.1 -> 3.8236 | K29: ='2017 DUOS Ex GST'!K29*1.1 -> 3.8236 | L29: ='2017 DUOS Ex GST'!L29*1.1 -> 0 | M29: ='2017 DUOS Ex GST'!M29*1.1 -> 0 | N29: ='2017 DUOS Ex GST'!N29*1.1 -> 31.6272 | O29: ='2017 DUOS Ex GST'!O29*1.1 -> 21.0848 | P29: ='2017 DUOS Ex GST'!P29*1.1 -> 0 | Q29: ='2017 DUOS Ex GST'!Q29*1.1 -> 0 | R29: NA | S29: >20 & <400 | U29: 1.5
B30: Low Voltage Medium kW 1 rate (Mandatory)3 | C30: LVMKW1R3 | D30: F | E30: ='2017 DUOS Ex GST'!E30*1.1 -> 0 | F30: ='2017 DUOS Ex GST'!F30*1.1 -> 5.8674 | G30: ='2017 DUOS Ex GST'!G30*1.1 -> 5.8674 | H30: ='2017 DUOS Ex GST'!H30*1.1 -> 5.8674 | I30: ='2017 DUOS Ex GST'!I30*1.1 -> 5.8674 | J30: ='2017 DUOS Ex GST'!J30*1.1 -> 5.8674 | K30: ='2017 DUOS Ex GST'!K30*1.1 -> 5.8674 | L30: ='2017 DUOS Ex GST'!L30*1.1 -> 0 | M30: ='2017 DUOS Ex GST'!M30*1.1 -> 0 | N30: ='2017 DUOS Ex GST'!N30*1.1 -> 19.6603 | O30: ='2017 DUOS Ex GST'!O30*1.1 -> 13.1065 | P30: ='2017 DUOS Ex GST'!P30*1.1 -> 0 | Q30: ='2017 DUOS Ex GST'!Q30*1.1 -> 0 | R30: NA | S30: >40 & <400 | U30: 1.5
B33: * Tariff closed to premises not already taking supply under this tariff and new connections.
B34: ** Tariff only available in conjunction with the LVS1R tariff for new connections.
B35: Summer peak energy rates apply for period 1st November to 31st March (except TODFLEX which follows daylight savings periods) & RESKWTOU which applies from 1st December to 31st March.
B36: Non-summer peak energy rates apply for period 1st April to 31st October (except TODFLEX which follows non-daylight savings periods) & RESKWTOU which applies from 1st April to 30th November.
B37: PFIT (Premium Feed-In Tariff) is defined by an “F” added to the front of an existing distribution tariff ie. FTOD. The PFIT tariffs are closed to new connections.
B38: 1 RESKW1R csutomers transitioned from RESKWTOU on 1 April 2016.
B39: 2 LVMKWTOU available from 1st July 2016 for low voltage business customers with energy consumption between 20-40MWh per annum as an opt-in transition.
B40: 3 LVMKW1R available from 1st January 2017 for low voltage business customers with energy consumption between 40-400MWh per annum as a mandatory transition.

Sheet 2017 TUOS Incl GST
B2: Schedule of Indicative Transmission Use of System (TUOS) Tariffs: 1 January 2017 (GSTInclusive)
E4: Network Tariff Component | R4: Eligibility (consumption/ category) | T4: Minimum Chargeable Rolling Demand | U4: Minimum Chargeable Demand
B5: Description | C5: Tariff Code | D5: PFIT (F) TFIT (T) | E5: Standing Charge (c/day) | F5: Summer Peak Energy (c/kWh) | G5: Non Summer Peak Energy Block 1 (c/kWh) | H5: Non Summer Peak Energy Block 2 (c/kWh) | I5: Summer Shoulder Energy (c/kWh) | J5: Non Summer Shoulder Energy (c/kWh) | K5: Off Peak Energy (c/kWh) | L5: Rolling Peak Demand c/kVA/day | M5: Summer Demand Incentive Charge c/kW/day or c/kVA/day | N5: Summer Demand Max kW c/KW/day | O5: Non-summer Demand Max kW c/KW/day | P5: Summer Demand Overrun Max kW c/KW/day | Q5: Non-summer Demand Overrun Max kW c/KW/day | R5: kVA | S5: MWh pa | T5: kVA | U5: kW
B6: Low voltage small 1 rate | C6: LVS1R | D6: F | E6: ='2017 TUOS Ex GST'!E6*1.1 -> 0 | F6: ='2017 TUOS Ex GST'!F6*1.1 -> 2.277 | G6: ='2017 TUOS Ex GST'!G6*1.1 -> 1.903 | H6: ='2017 TUOS Ex GST'!H6*1.1 -> 0 | I6: ='2017 TUOS Ex GST'!I6*1.1 -> 0 | J6: ='2017 TUOS Ex GST'!J6*1.1 -> 0 | K6: ='2017 TUOS Ex GST'!K6*1.1 -> 0 | L6: ='2017 TUOS Ex GST'!L6*1.1 -> 0 | M6: ='2017 TUOS Ex GST'!M6*1.1 -> 0 | N6: ='2017 TUOS Ex GST'!N6*1.1 -> 0 | O6: ='2017 TUOS Ex GST'!O6*1.1 -> 0 | P6: ='2017 TUOS Ex GST'!P6*1.1 -> 0 | Q6: ='2017 TUOS Ex GST'!Q6*1.1 -> 0 | R6: NA | S6: <20
B7: Low voltage small 2 rate* | C7: LVS2R* | E7: ='2017 TUOS Ex GST'!E7*1.1 -> 0 | F7: ='2017 TUOS Ex GST'!F7*1.1 -> 3.8236 | G7: ='2017 TUOS Ex GST'!G7*1.1 -> 3.0602 | H7: ='2017 TUOS Ex GST'!H7*1.1 -> 0 | I7: ='2017 TUOS Ex GST'!I7*1.1 -> 0 | J7: ='2017 TUOS Ex GST'!J7*1.1 -> 0 | K7: ='2017 TUOS Ex GST'!K7*1.1 -> 0 | L7: ='2017 TUOS Ex GST'!L7*1.1 -> 0 | M7: ='2017 TUOS Ex GST'!M7*1.1 -> 0 | N7: ='2017 TUOS Ex GST'!N7*1.1 -> 0 | O7: ='2017 TUOS Ex GST'!O7*1.1 -> 0 | P7: ='2017 TUOS Ex GST'!P7*1.1 -> 0 | Q7: ='2017 TUOS Ex GST'!Q7*1.1 -> 0
B8: Dedicated circuit** | C8: LVDed** | E8: ='2017 TUOS Ex GST'!E8*1.1 -> 0 | F8: ='2017 TUOS Ex GST'!F8*1.1 -> 0 | G8: ='2017 TUOS Ex GST'!G8*1.1 -> 0 | H8: ='2017 TUOS Ex GST'!H8*1.1 -> 0 | I8: ='2017 TUOS Ex GST'!I8*1.1 -> 0 | J8: ='2017 TUOS Ex GST'!J8*1.1 -> 0 | K8: ='2017 TUOS Ex GST'!K8*1.1 -> 0 | L8: ='2017 TUOS Ex GST'!L8*1.1 -> 0 | M8: ='2017 TUOS Ex GST'!M8*1.1 -> 0 | N8: ='2017 TUOS Ex GST'!N8*1.1 -> 0 | O8: ='2017 TUOS Ex GST'!O8*1.1 -> 0 | P8: ='2017 TUOS Ex GST'!P8*1.1 -> 0 | Q8: ='2017 TUOS Ex GST'!Q8*1.1 -> 0 | R8: NA | S8: <20 (on LVS1R)
B9: Unmetered supplies | C9: UnMet | E9: ='2017 TUOS Ex GST'!E9*1.1 -> 0 | F9: ='2017 TUOS Ex GST'!F9*1.1 -> 3.5827 | G9: ='2017 TUOS Ex GST'!G9*1.1 -> 2.8633 | H9: ='2017 TUOS Ex GST'!H9*1.1 -> 0 | I9: ='2017 TUOS Ex GST'!I9*1.1 -> 0 | J9: ='2017 TUOS Ex GST'!J9*1.1 -> 0 | K9: ='2017 TUOS Ex GST'!K9*1.1 -> 0 | L9: ='2017 TUOS Ex GST'!L9*1.1 -> 0 | M9: ='2017 TUOS Ex GST'!M9*1.1 -> 0 | N9: ='2017 TUOS Ex GST'!N9*1.1 -> 0 | O9: ='2017 TUOS Ex GST'!O9*1.1 -> 0 | P9: ='2017 TUOS Ex GST'!P9*1.1 -> 0 | Q9: ='2017 TUOS Ex GST'!Q9*1.1 -> 0
B10: Winter Energy Tariff* | C10: WET2Step* | E10: ='2017 TUOS Ex GST'!E10*1.1 -> 0 | F10: ='2017 TUOS Ex GST'!F10*1.1 -> 2.5476 | G10: ='2017 TUOS Ex GST'!G10*1.1 -> 2.0383 | H10: ='2017 TUOS Ex GST'!H10*1.1 -> 2.0383 | I10: ='2017 TUOS Ex GST'!I10*1.1 -> 0 | J10: ='2017 TUOS Ex GST'!J10*1.1 -> 0 | K10: ='2017 TUOS Ex GST'!K10*1.1 -> 0 | L10: ='2017 TUOS Ex GST'!L10*1.1 -> 0 | M10: ='2017 TUOS Ex GST'!M10*1.1 -> 0 | N10: ='2017 TUOS Ex GST'!N10*1.1 -> 0 | O10: ='2017 TUOS Ex GST'!O10*1.1 -> 0 | P10: ='2017 TUOS Ex GST'!P10*1.1 -> 0 | Q10: ='2017 TUOS Ex GST'!Q10*1.1 -> 0
B11: Reverse cycle airconditioning time of use* | C11: RCACkWTOU* | E11: ='2017 TUOS Ex GST'!E11*1.1 -> 0 | F11: ='2017 TUOS Ex GST'!F11*1.1 -> 17.2634 | G11: ='2017 TUOS Ex GST'!G11*1.1 -> 3.8445 | H11: ='2017 TUOS Ex GST'!H11*1.1 -> 0 | I11: ='2017 TUOS Ex GST'!I11*1.1 -> 0 | J11: ='2017 TUOS Ex GST'!J11*1.1 -> 0 | K11: ='2017 TUOS Ex GST'!K11*1.1 -> 0 | L11: ='2017 TUOS Ex GST'!L11*1.1 -> 0 | M11: ='2017 TUOS Ex GST'!M11*1.1 -> 10.9472 | N11: ='2017 TUOS Ex GST'!N11*1.1 -> 0 | O11: ='2017 TUOS Ex GST'!O11*1.1 -> 0 | P11: ='2017 TUOS Ex GST'!P11*1.1 -> 0 | Q11: ='2017 TUOS Ex GST'!Q11*1.1 -> 0
B12: Low voltage medium 1 rate | C12: LVM1R | D12: F | E12: ='2017 TUOS Ex GST'!E12*1.1 -> 0 | F12: ='2017 TUOS Ex GST'!F12*1.1 -> 2.6752 | G12: ='2017 TUOS Ex GST'!G12*1.1 -> 2.1362 | H12: ='2017 TUOS Ex GST'!H12*1.1 -> 0 | I12: ='2017 TUOS Ex GST'!I12*1.1 -> 0 | J12: ='2017 TUOS Ex GST'!J12*1.1 -> 0 | K12: ='2017 TUOS Ex GST'!K12*1.1 -> 0 | L12: ='2017 TUOS Ex GST'!L12*1.1 -> 0 | M12: ='2017 TUOS Ex GST'!M12*1.1 -> 0 | N12: ='2017 TUOS Ex GST'!N12*1.1 -> 0 | O12: ='2017 TUOS Ex GST'!O12*1.1 -> 0 | P12: ='2017 TUOS Ex GST'!P12*1.1 -> 0 | Q12: ='2017 TUOS Ex GST'!Q12*1.1 -> 0 | R12: NA | S12: >20 & <400
B13: Low voltage medium 2 rate 5 day* | C13: LVM2R5D* | E13: ='2017 TUOS Ex GST'!E13*1.1 -> 0 | F13: ='2017 TUOS Ex GST'!F13*1.1 -> 2.3166 | G13: ='2017 TUOS Ex GST'!G13*1.1 -> 1.8524 | H13: ='2017 TUOS Ex GST'!H13*1.1 -> 0 | I13: ='2017 TUOS Ex GST'!I13*1.1 -> 0 | J13: ='2017 TUOS Ex GST'!J13*1.1 -> 0 | K13: ='2017 TUOS Ex GST'!K13*1.1 -> 0 | L13: ='2017 TUOS Ex GST'!L13*1.1 -> 0 | M13: ='2017 TUOS Ex GST'!M13*1.1 -> 0 | N13: ='2017 TUOS Ex GST'!N13*1.1 -> 0 | O13: ='2017 TUOS Ex GST'!O13*1.1 -> 0 | P13: ='2017 TUOS Ex GST'!P13*1.1 -> 0 | Q13: ='2017 TUOS Ex GST'!Q13*1.1 -> 0
B14: Low voltage medium 2 rate 7 day* | C14: LVM2R7D* | E14: ='2017 TUOS Ex GST'!E14*1.1 -> 0 | F14: ='2017 TUOS Ex GST'!F14*1.1 -> 2.7577 | G14: ='2017 TUOS Ex GST'!G14*1.1 -> 2.2077 | H14: ='2017 TUOS Ex GST'!H14*1.1 -> 0 | I14: ='2017 TUOS Ex GST'!I14*1.1 -> 0 | J14: ='2017 TUOS Ex GST'!J14*1.1 -> 0 | K14: ='2017 TUOS Ex GST'!K14*1.1 -> 0 | L14: ='2017 TUOS Ex GST'!L14*1.1 -> 0 | M14: ='2017 TUOS Ex GST'!M14*1.1 -> 0 | N14: ='2017 TUOS Ex GST'!N14*1.1 -> 0 | O14: ='2017 TUOS Ex GST'!O14*1.1 -> 0 | P14: ='2017 TUOS Ex GST'!P14*1.1 -> 0 | Q14: ='2017 TUOS Ex GST'!Q14*1.1 -> 0
B15: Low voltage KW time of use* | C15: LVkWTOU* | E15: ='2017 TUOS Ex GST'!E15*1.1 -> 0 | F15: ='2017 TUOS Ex GST'!F15*1.1 -> 2.1461 | G15: ='2017 TUOS Ex GST'!G15*1.1 -> 1.716 | H15: ='2017 TUOS Ex GST'!H15*1.1 -> 0 | I15: ='2017 TUOS Ex GST'!I15*1.1 -> 0 | J15: ='2017 TUOS Ex GST'!J15*1.1 -> 0 | K15: ='2017 TUOS Ex GST'!K15*1.1 -> 0 | L15: ='2017 TUOS Ex GST'!L15*1.1 -> 0 | M15: ='2017 TUOS Ex GST'!M15*1.1 -> 10.01 | N15: ='2017 TUOS Ex GST'!N15*1.1 -> 0 | O15: ='2017 TUOS Ex GST'!O15*1.1 -> 0 | P15: ='2017 TUOS Ex GST'!P15*1.1 -> 0 | Q15: ='2017 TUOS Ex GST'!Q15*1.1 -> 0
B16: Low voltage KW time of use - HOT* | C16: LVkWTOUH* | E16: ='2017 TUOS Ex GST'!E16*1.1 -> 0 | F16: ='2017 TUOS Ex GST'!F16*1.1 -> 1.1737 | G16: ='2017 TUOS Ex GST'!G16*1.1 -> 0.9383 | H16: ='2017 TUOS Ex GST'!H16*1.1 -> 0 | I16: ='2017 TUOS Ex GST'!I16*1.1 -> 0 | J16: ='2017 TUOS Ex GST'!J16*1.1 -> 0 | K16: ='2017 TUOS Ex GST'!K16*1.1 -> 0 | L16: ='2017 TUOS Ex GST'!L16*1.1 -> 0 | M16: ='2017 TUOS Ex GST'!M16*1.1 -> 10.5193 | N16: ='2017 TUOS Ex GST'!N16*1.1 -> 0 | O16: ='2017 TUOS Ex GST'!O16*1.1 -> 0 | P16: ='2017 TUOS Ex GST'!P16*1.1 -> 0 | Q16: ='2017 TUOS Ex GST'!Q16*1.1 -> 0
B17: Low voltage large 1 rate* | C17: LVL1R* | E17: ='2017 TUOS Ex GST'!E17*1.1 -> 0 | F17: ='2017 TUOS Ex GST'!F17*1.1 -> 2.6675 | G17: ='2017 TUOS Ex GST'!G17*1.1 -> 2.1318 | H17: ='2017 TUOS Ex GST'!H17*1.1 -> 0 | I17: ='2017 TUOS Ex GST'!I17*1.1 -> 0 | J17: ='2017 TUOS Ex GST'!J17*1.1 -> 0 | K17: ='2017 TUOS Ex GST'!K17*1.1 -> 0 | L17: ='2017 TUOS Ex GST'!L17*1.1 -> 0 | M17: ='2017 TUOS Ex GST'!M17*1.1 -> 0 | N17: ='2017 TUOS Ex GST'!N17*1.1 -> 0 | O17: ='2017 TUOS Ex GST'!O17*1.1 -> 0 | P17: ='2017 TUOS Ex GST'!P17*1.1 -> 0 | Q17: ='2017 TUOS Ex GST'!Q17*1.1 -> 0
B18: Low voltage large 2 rate* | C18: LVL2R* | E18: ='2017 TUOS Ex GST'!E18*1.1 -> 0 | F18: ='2017 TUOS Ex GST'!F18*1.1 -> 2.0504 | G18: ='2017 TUOS Ex GST'!G18*1.1 -> 1.6423 | H18: ='2017 TUOS Ex GST'!H18*1.1 -> 0 | I18: ='2017 TUOS Ex GST'!I18*1.1 -> 0 | J18: ='2017 TUOS Ex GST'!J18*1.1 -> 0 | K18: ='2017 TUOS Ex GST'!K18*1.1 -> 0 | L18: ='2017 TUOS Ex GST'!L18*1.1 -> 0 | M18: ='2017 TUOS Ex GST'!M18*1.1 -> 0 | N18: ='2017 TUOS Ex GST'!N18*1.1 -> 0 | O18: ='2017 TUOS Ex GST'!O18*1.1 -> 0 | P18: ='2017 TUOS Ex GST'!P18*1.1 -> 0 | Q18: ='2017 TUOS Ex GST'!Q18*1.1 -> 0
B19: Low voltage large KVA time of use | C19: LVkVATOU | E19: ='2017 TUOS Ex GST'!E19*1.1 -> 0 | F19: ='2017 TUOS Ex GST'!F19*1.1 -> 1.1693 | G19: ='2017 TUOS Ex GST'!G19*1.1 -> 0.9383 | H19: ='2017 TUOS Ex GST'!H19*1.1 -> 0 | I19: ='2017 TUOS Ex GST'!I19*1.1 -> 0 | J19: ='2017 TUOS Ex GST'!J19*1.1 -> 0 | K19: ='2017 TUOS Ex GST'!K19*1.1 -> 0 | L19: ='2017 TUOS Ex GST'!L19*1.1 -> 4.7729 | M19: ='2017 TUOS Ex GST'!M19*1.1 -> 6.5241 | N19: ='2017 TUOS Ex GST'!N19*1.1 -> 0 | O19: ='2017 TUOS Ex GST'!O19*1.1 -> 0 | P19: ='2017 TUOS Ex GST'!P19*1.1 -> 0 | Q19: ='2017 TUOS Ex GST'!Q19*1.1 -> 0 | R19: >150 | S19: >400 | T19: 150
B20: Low voltage large KVA time of use - HOT* | C20: LVkVATOUH* | E20: ='2017 TUOS Ex GST'!E20*1.1 -> 0 | F20: ='2017 TUOS Ex GST'!F20*1.1 -> 0.7381 | G20: ='2017 TUOS Ex GST'!G20*1.1 -> 0.5918 | H20: ='2017 TUOS Ex GST'!H20*1.1 -> 0 | I20: ='2017 TUOS Ex GST'!I20*1.1 -> 0 | J20: ='2017 TUOS Ex GST'!J20*1.1 -> 0 | K20: ='2017 TUOS Ex GST'!K20*1.1 -> 0 | L20: ='2017 TUOS Ex GST'!L20*1.1 -> 3.0118 | M20: ='2017 TUOS Ex GST'!M20*1.1 -> 7.92 | N20: ='2017 TUOS Ex GST'!N20*1.1 -> 0 | O20: ='2017 TUOS Ex GST'!O20*1.1 -> 0 | P20: ='2017 TUOS Ex GST'!P20*1.1 -> 0 | Q20: ='2017 TUOS Ex GST'!Q20*1.1 -> 0 | T20: 150
B21: High voltage KVA time of use | C21: HVkVATOU | E21: ='2017 TUOS Ex GST'!E21*1.1 -> 0 | F21: ='2017 TUOS Ex GST'!F21*1.1 -> 0.8217 | G21: ='2017 TUOS Ex GST'!G21*1.1 -> 0.6578 | H21: ='2017 TUOS Ex GST'!H21*1.1 -> 0 | I21: ='2017 TUOS Ex GST'!I21*1.1 -> 0 | J21: ='2017 TUOS Ex GST'!J21*1.1 -> 0 | K21: ='2017 TUOS Ex GST'!K21*1.1 -> 0 | L21: ='2017 TUOS Ex GST'!L21*1.1 -> 5.4659 | M21: ='2017 TUOS Ex GST'!M21*1.1 -> 5.7376 | N21: ='2017 TUOS Ex GST'!N21*1.1 -> 0 | O21: ='2017 TUOS Ex GST'!O21*1.1 -> 0 | P21: ='2017 TUOS Ex GST'!P21*1.1 -> 0 | Q21: ='2017 TUOS Ex GST'!Q21*1.1 -> 0 | R21: >150 | S21: >400 | T21: 1150
B22: High voltage KVA time of use - HOT* | C22: HVkVATOUH* | E22: ='2017 TUOS Ex GST'!E22*1.1 -> 0 | F22: ='2017 TUOS Ex GST'!F22*1.1 -> 0.473 | G22: ='2017 TUOS Ex GST'!G22*1.1 -> 0.3762 | H22: ='2017 TUOS Ex GST'!H22*1.1 -> 0 | I22: ='2017 TUOS Ex GST'!I22*1.1 -> 0 | J22: ='2017 TUOS Ex GST'!J22*1.1 -> 0 | K22: ='2017 TUOS Ex GST'!K22*1.1 -> 0 | L22: ='2017 TUOS Ex GST'!L22*1.1 -> 3.1339 | M22: ='2017 TUOS Ex GST'!M22*1.1 -> 6.3261 | N22: ='2017 TUOS Ex GST'!N22*1.1 -> 0 | O22: ='2017 TUOS Ex GST'!O22*1.1 -> 0 | P22: ='2017 TUOS Ex GST'!P22*1.1 -> 0 | Q22: ='2017 TUOS Ex GST'!Q22*1.1 -> 0 | T22: 1150
B23: Subtransmission KVA time of use* | C23: SubTkVATOU* | E23: ='2017 TUOS Ex GST'!E23*1.1 -> 0 | F23: ='2017 TUOS Ex GST'!F23*1.1 -> 0.5544 | G23: ='2017 TUOS Ex GST'!G23*1.1 -> 0.4466 | H23: ='2017 TUOS Ex GST'!H23*1.1 -> 0 | I23: ='2017 TUOS Ex GST'!I23*1.1 -> 0 | J23: ='2017 TUOS Ex GST'!J23*1.1 -> 0 | K23: ='2017 TUOS Ex GST'!K23*1.1 -> 0 | L23: ='2017 TUOS Ex GST'!L23*1.1 -> 3.9292 | M23: ='2017 TUOS Ex GST'!M23*1.1 -> 4.7674 | N23: ='2017 TUOS Ex GST'!N23*1.1 -> 0 | O23: ='2017 TUOS Ex GST'!O23*1.1 -> 0 | P23: ='2017 TUOS Ex GST'!P23*1.1 -> 0 | Q23: ='2017 TUOS Ex GST'!Q23*1.1 -> 0 | T23: 11100
B24: Time of Day | C24: TOD | D24: F | E24: ='2017 TUOS Ex GST'!E24*1.1 -> 0 | F24: ='2017 TUOS Ex GST'!F24*1.1 -> 3.6883 | G24: ='2017 TUOS Ex GST'!G24*1.1 -> 3.1306 | H24: ='2017 TUOS Ex GST'!H24*1.1 -> 0 | I24: ='2017 TUOS Ex GST'!I24*1.1 -> 3.1306 | J24: ='2017 TUOS Ex GST'!J24*1.1 -> 2.7643 | K24: ='2017 TUOS Ex GST'!K24*1.1 -> 0 | L24: ='2017 TUOS Ex GST'!L24*1.1 -> 0 | M24: ='2017 TUOS Ex GST'!M24*1.1 -> 0 | N24: ='2017 TUOS Ex GST'!N24*1.1 -> 0 | O24: ='2017 TUOS Ex GST'!O24*1.1 -> 0 | P24: ='2017 TUOS Ex GST'!P24*1.1 -> 0 | Q24: ='2017 TUOS Ex GST'!Q24*1.1 -> 0 | R24: NA | S24: <20
B25: Time of Use | C25: TOU | D25: F | E25: ='2017 TUOS Ex GST'!E25*1.1 -> 0 | F25: ='2017 TUOS Ex GST'!F25*1.1 -> 2.7401 | G25: ='2017 TUOS Ex GST'!G25*1.1 -> 1.2584 | H25: ='2017 TUOS Ex GST'!H25*1.1 -> 0 | I25: ='2017 TUOS Ex GST'!I25*1.1 -> 0 | J25: ='2017 TUOS Ex GST'!J25*1.1 -> 0 | K25: ='2017 TUOS Ex GST'!K25*1.1 -> 0 | L25: ='2017 TUOS Ex GST'!L25*1.1 -> 0 | M25: ='2017 TUOS Ex GST'!M25*1.1 -> 7.1797 | N25: ='2017 TUOS Ex GST'!N25*1.1 -> 0 | O25: ='2017 TUOS Ex GST'!O25*1.1 -> 0 | P25: ='2017 TUOS Ex GST'!P25*1.1 -> 0 | Q25: ='2017 TUOS Ex GST'!Q25*1.1 -> 0 | R25: NA | S25: >20 & <400
B26: Time of Day 9pm off-peak | C26: TOD9 | D26: F | E26: ='2017 TUOS Ex GST'!E26*1.1 -> 0 | F26: ='2017 TUOS Ex GST'!F26*1.1 -> 4.95 | G26: ='2017 TUOS Ex GST'!G26*1.1 -> 4.6013 | H26: ='2017 TUOS Ex GST'!H26*1.1 -> 0 | I26: ='2017 TUOS Ex GST'!I26*1.1 -> 4.6013 | J26: ='2017 TUOS Ex GST'!J26*1.1 -> 4.3725 | K26: ='2017 TUOS Ex GST'!K26*1.1 -> 0 | L26: ='2017 TUOS Ex GST'!L26*1.1 -> 0 | M26: ='2017 TUOS Ex GST'!M26*1.1 -> 0 | N26: ='2017 TUOS Ex GST'!N26*1.1 -> 0 | O26: ='2017 TUOS Ex GST'!O26*1.1 -> 0 | P26: ='2017 TUOS Ex GST'!P26*1.1 -> 0 | Q26: ='2017 TUOS Ex GST'!Q26*1.1 -> 0 | R26: NA | S26: <20
B27: Time of Day Flexible | C27: TODFLEX | D27: F | E27: ='2017 TUOS Ex GST'!E27*1.1 -> 0 | F27: ='2017 TUOS Ex GST'!F27*1.1 -> 4.1855 | G27: ='2017 TUOS Ex GST'!G27*1.1 -> 3.9039 | H27: ='2017 TUOS Ex GST'!H27*1.1 -> 0 | I27: ='2017 TUOS Ex GST'!I27*1.1 -> 2.0911 | J27: ='2017 TUOS Ex GST'!J27*1.1 -> 1.8447 | K27: ='2017 TUOS Ex GST'!K27*1.1 -> 0 | L27: ='2017 TUOS Ex GST'!L27*1.1 -> 0 | M27: ='2017 TUOS Ex GST'!M27*1.1 -> 0 | N27: ='2017 TUOS Ex GST'!N27*1.1 -> 0 | O27: ='2017 TUOS Ex GST'!O27*1.1 -> 0 | P27: ='2017 TUOS Ex GST'!P27*1.1 -> 0 | Q27: ='2017 TUOS Ex GST'!Q27*1.1 -> 0 | R27: Residential Customer
B28: Low voltage KW 1 rate1 | C28: RESKW1R1 | D28: F | E28: ='2017 TUOS Ex GST'!E28*1.1 -> 0 | F28: ='2017 TUOS Ex GST'!F28*1.1 -> 0.7689 | G28: ='2017 TUOS Ex GST'!G28*1.1 -> 0.7689 | H28: ='2017 TUOS Ex GST'!H28*1.1 -> 0.7689 | I28: ='2017 TUOS Ex GST'!I28*1.1 -> 0.7689 | J28: ='2017 TUOS Ex GST'!J28*1.1 -> 0.7689 | K28: ='2017 TUOS Ex GST'!K28*1.1 -> 0.7689 | L28: ='2017 TUOS Ex GST'!L28*1.1 -> 0 | M28: ='2017 TUOS Ex GST'!M28*1.1 -> 0 | N28: ='2017 TUOS Ex GST'!N28*1.1 -> 5.7618 | O28: ='2017 TUOS Ex GST'!O28*1.1 -> 3.7455 | P28: ='2017 TUOS Ex GST'!P28*1.1 -> 0 | Q28: ='2017 TUOS Ex GST'!Q28*1.1 -> 0 | R28: NA | S28: <20 | U28: 1.5
B29: Low Voltage Medium kW Time of Use (Opt-in)2 | C29: LVMKWTOU2 | D29: F | E29: ='2017 TUOS Ex GST'!E29*1.1 -> 0 | F29: ='2017 TUOS Ex GST'!F29*1.1 -> 0.9724 | G29: ='2017 TUOS Ex GST'!G29*1.1 -> 0.9724 | H29: ='2017 TUOS Ex GST'!H29*1.1 -> 0.9724 | I29: ='2017 TUOS Ex GST'!I29*1.1 -> 0.9724 | J29: ='2017 TUOS Ex GST'!J29*1.1 -> 0.9724 | K29: ='2017 TUOS Ex GST'!K29*1.1 -> 0.9724 | L29: ='2017 TUOS Ex GST'!L29*1.1 -> 0 | M29: ='2017 TUOS Ex GST'!M29*1.1 -> 0 | N29: ='2017 TUOS Ex GST'!N29*1.1 -> 8.041 | O29: ='2017 TUOS Ex GST'!O29*1.1 -> 5.3614 | P29: ='2017 TUOS Ex GST'!P29*1.1 -> 0 | Q29: ='2017 TUOS Ex GST'!Q29*1.1 -> 0 | R29: NA | S29: >20 & <400 | U29: 1.5
B30: Low Voltage Medium kW 1 rate (Mandatory)3 | C30: LVMKW1R3 | D30: F | E30: ='2017 TUOS Ex GST'!E30*1.1 -> 0 | F30: ='2017 TUOS Ex GST'!F30*1.1 -> 1.4652 | G30: ='2017 TUOS Ex GST'!G30*1.1 -> 1.4652 | H30: ='2017 TUOS Ex GST'!H30*1.1 -> 1.4652 | I30: ='2017 TUOS Ex GST'!I30*1.1 -> 1.4652 | J30: ='2017 TUOS Ex GST'!J30*1.1 -> 1.4652 | K30: ='2017 TUOS Ex GST'!K30*1.1 -> 1.4652 | L30: ='2017 TUOS Ex GST'!L30*1.1 -> 0 | M30: ='2017 TUOS Ex GST'!M30*1.1 -> 0 | N30: ='2017 TUOS Ex GST'!N30*1.1 -> 4.9104 | O30: ='2017 TUOS Ex GST'!O30*1.1 -> 3.2736 | P30: ='2017 TUOS Ex GST'!P30*1.1 -> 0 | Q30: ='2017 TUOS Ex GST'!Q30*1.1 -> 0 | R30: NA | S30: >40 & <400 | U30: 1.5
B33: * Tariff closed to premises not already taking supply under this tariff and new connections.
B34: ** Tariff only available in conjunction with the LVS1R tariff for new connections.
B35: Summer peak energy rates apply for period 1st November to 31st March (except TODFLEX which follows daylight savings periods) & RESKWTOU which applies from 1st December to 31st March.
B36: Non-summer peak energy rates apply for period 1st April to 31st October (except TODFLEX which follows non-daylight savings periods) & RESKWTOU which applies from 1st April to 30th November.
B37: PFIT (Premium Feed-In Tariff) is defined by an “F” added to the front of an existing distribution tariff ie. FTOD. The PFIT tariffs are closed to new connections.
B38: 1 RESKW1R csutomers transitioned from RESKWTOU on 1 April 2016.
B39: 2 LVMKWTOU available from 1st July 2016 for low voltage business customers with energy consumption between 20-40MWh per annum as an opt-in transition.
B40: 3 LVMKW1R available from 1st January 2017 for low voltage business customers with energy consumption between 40-400MWh per annum as a mandatory transition.

Sheet 2017 NUOS Incl GST
B2: Schedule of Indicative Network Use of System (NUOS) Tariffs: 1 January 2017 (GST Exclusive)
E4: Network Tariff Component | R4: Eligibility (consumption/ category) | T4: Minimum Chargeable Rolling Demand | U4: Minimum Chargeable Demand
B5: Description | C5: Tariff Code | D5: PFIT (F) TFIT (T) | E5: Standing Charge (c/day) | F5: Summer Peak Energy (c/kWh) | G5: Non Summer Peak Energy Block 1 (c/kWh) | H5: Non Summer Peak Energy Block 2 (c/kWh) | I5: Summer Shoulder Energy (c/kWh) | J5: Non Summer Shoulder Energy (c/kWh) | K5: Off Peak Energy (c/kWh) | L5: Rolling Peak Demand c/kVA/day | M5: Summer Demand Incentive Charge c/kW/day or c/kVA/day | N5: Summer Demand Max kW c/KW/day | O5: Non-summer Demand Max kW c/KW/day | P5: Summer Demand Overrun Max kW c/KW/day | Q5: Non-summer Demand Overrun Max kW c/KW/day | R5: kVA | S5: MWh pa | T5: kVA | U5: kW
B6: Low voltage small 1 rate | C6: LVS1R | D6: F | E6: ='2017 DUOS Incl GST'!E6+'2017 TUOS Incl GST'!E6 -> 7.3172 | F6: ='2017 DUOS Incl GST'!F6+'2017 TUOS Incl GST'!F6 -> 11.2992 | G6: ='2017 DUOS Incl GST'!G6+'2017 TUOS Incl GST'!G6 -> 7.711 | H6: ='2017 DUOS Incl GST'!H6+'2017 TUOS Incl GST'!H6 -> 0 | I6: ='2017 DUOS Incl GST'!I6+'2017 TUOS Incl GST'!I6 -> 0 | J6: ='2017 DUOS Incl GST'!J6+'2017 TUOS Incl GST'!J6 -> 0 | K6: ='2017 DUOS Incl GST'!K6+'2017 TUOS Incl GST'!K6 -> 0 | L6: ='2017 DUOS Incl GST'!L6+'2017 TUOS Incl GST'!L6 -> 0 | M6: ='2017 DUOS Incl GST'!M6+'2017 TUOS Incl GST'!M6 -> 0 | N6: ='2017 DUOS Incl GST'!N6+'2017 TUOS Incl GST'!N6 -> 0 | O6: ='2017 DUOS Incl GST'!O6+'2017 TUOS Incl GST'!O6 -> 0 | P6: ='2017 DUOS Incl GST'!P6+'2017 TUOS Incl GST'!P6 -> 0 | Q6: ='2017 DUOS Incl GST'!Q6+'2017 TUOS Incl GST'!Q6 -> 0 | R6: NA | S6: <20
B7: Low voltage small 2 rate* | C7: LVS2R* | E7: ='2017 DUOS Incl GST'!E7+'2017 TUOS Incl GST'!E7 -> 14.9446 | F7: ='2017 DUOS Incl GST'!F7+'2017 TUOS Incl GST'!F7 -> 14.5497 | G7: ='2017 DUOS Incl GST'!G7+'2017 TUOS Incl GST'!G7 -> 11.1958 | H7: ='2017 DUOS Incl GST'!H7+'2017 TUOS Incl GST'!H7 -> 0 | I7: ='2017 DUOS Incl GST'!I7+'2017 TUOS Incl GST'!I7 -> 0 | J7: ='2017 DUOS Incl GST'!J7+'2017 TUOS Incl GST'!J7 -> 0 | K7: ='2017 DUOS Incl GST'!K7+'2017 TUOS Incl GST'!K7 -> 1.8601 | L7: ='2017 DUOS Incl GST'!L7+'2017 TUOS Incl GST'!L7 -> 0 | M7: ='2017 DUOS Incl GST'!M7+'2017 TUOS Incl GST'!M7 -> 0 | N7: ='2017 DUOS Incl GST'!N7+'2017 TUOS Incl GST'!N7 -> 0 | O7: ='2017 DUOS Incl GST'!O7+'2017 TUOS Incl GST'!O7 -> 0 | P7: ='2017 DUOS Incl GST'!P7+'2017 TUOS Incl GST'!P7 -> 0 | Q7: ='2017 DUOS Incl GST'!Q7+'2017 TUOS Incl GST'!Q7 -> 0
B8: Dedicated circuit** | C8: LVDed** | E8: ='2017 DUOS Incl GST'!E8+'2017 TUOS Incl GST'!E8 -> 0 | F8: ='2017 DUOS Incl GST'!F8+'2017 TUOS Incl GST'!F8 -> 0 | G8: ='2017 DUOS Incl GST'!G8+'2017 TUOS Incl GST'!G8 -> 0 | H8: ='2017 DUOS Incl GST'!H8+'2017 TUOS Incl GST'!H8 -> 0 | I8: ='2017 DUOS Incl GST'!I8+'2017 TUOS Incl GST'!I8 -> 0 | J8: ='2017 DUOS Incl GST'!J8+'2017 TUOS Incl GST'!J8 -> 0 | K8: ='2017 DUOS Incl GST'!K8+'2017 TUOS Incl GST'!K8 -> 2.0581 | L8: ='2017 DUOS Incl GST'!L8+'2017 TUOS Incl GST'!L8 -> 0 | M8: ='2017 DUOS Incl GST'!M8+'2017 TUOS Incl GST'!M8 -> 0 | N8: ='2017 DUOS Incl GST'!N8+'2017 TUOS Incl GST'!N8 -> 0 | O8: ='2017 DUOS Incl GST'!O8+'2017 TUOS Incl GST'!O8 -> 0 | P8: ='2017 DUOS Incl GST'!P8+'2017 TUOS Incl GST'!P8 -> 0 | Q8: ='2017 DUOS Incl GST'!Q8+'2017 TUOS Incl GST'!Q8 -> 0 | R8: NA | S8: <20 (on LVS1R)
B9: Unmetered supplies | C9: UnMet | E9: ='2017 DUOS Incl GST'!E9+'2017 TUOS Incl GST'!E9 -> 0 | F9: ='2017 DUOS Incl GST'!F9+'2017 TUOS Incl GST'!F9 -> 12.5994 | G9: ='2017 DUOS Incl GST'!G9+'2017 TUOS Incl GST'!G9 -> 9.4589 | H9: ='2017 DUOS Incl GST'!H9+'2017 TUOS Incl GST'!H9 -> 0 | I9: ='2017 DUOS Incl GST'!I9+'2017 TUOS Incl GST'!I9 -> 0 | J9: ='2017 DUOS Incl GST'!J9+'2017 TUOS Incl GST'!J9 -> 0 | K9: ='2017 DUOS Incl GST'!K9+'2017 TUOS Incl GST'!K9 -> 1.6258 | L9: ='2017 DUOS Incl GST'!L9+'2017 TUOS Incl GST'!L9 -> 0 | M9: ='2017 DUOS Incl GST'!M9+'2017 TUOS Incl GST'!M9 -> 0 | N9: ='2017 DUOS Incl GST'!N9+'2017 TUOS Incl GST'!N9 -> 0 | O9: ='2017 DUOS Incl GST'!O9+'2017 TUOS Incl GST'!O9 -> 0 | P9: ='2017 DUOS Incl GST'!P9+'2017 TUOS Incl GST'!P9 -> 0 | Q9: ='2017 DUOS Incl GST'!Q9+'2017 TUOS Incl GST'!Q9 -> 0
B10: Winter Energy Tariff* | C10: WET2Step* | E10: ='2017 DUOS Incl GST'!E10+'2017 TUOS Incl GST'!E10 -> 9.4237 | F10: ='2017 DUOS Incl GST'!F10+'2017 TUOS Incl GST'!F10 -> 9.5755 | G10: ='2017 DUOS Incl GST'!G10+'2017 TUOS Incl GST'!G10 -> 7.2457 | H10: ='2017 DUOS Incl GST'!H10+'2017 TUOS Incl GST'!H10 -> 3.9897 | I10: ='2017 DUOS Incl GST'!I10+'2017 TUOS Incl GST'!I10 -> 0 | J10: ='2017 DUOS Incl GST'!J10+'2017 TUOS Incl GST'!J10 -> 0 | K10: ='2017 DUOS Incl GST'!K10+'2017 TUOS Incl GST'!K10 -> 0 | L10: ='2017 DUOS Incl GST'!L10+'2017 TUOS Incl GST'!L10 -> 0 | M10: ='2017 DUOS Incl GST'!M10+'2017 TUOS Incl GST'!M10 -> 0 | N10: ='2017 DUOS Incl GST'!N10+'2017 TUOS Incl GST'!N10 -> 0 | O10: ='2017 DUOS Incl GST'!O10+'2017 TUOS Incl GST'!O10 -> 0 | P10: ='2017 DUOS Incl GST'!P10+'2017 TUOS Incl GST'!P10 -> 0 | Q10: ='2017 DUOS Incl GST'!Q10+'2017 TUOS Incl GST'!Q10 -> 0
B11: Reverse cycle airconditioning time of use* | C11: RCACkWTOU* | E11: ='2017 DUOS Incl GST'!E11+'2017 TUOS Incl GST'!E11 -> 0 | F11: ='2017 DUOS Incl GST'!F11+'2017 TUOS Incl GST'!F11 -> 23.3717 | G11: ='2017 DUOS Incl GST'!G11+'2017 TUOS Incl GST'!G11 -> 5.3801 | H11: ='2017 DUOS Incl GST'!H11+'2017 TUOS Incl GST'!H11 -> 0 | I11: ='2017 DUOS Incl GST'!I11+'2017 TUOS Incl GST'!I11 -> 0 | J11: ='2017 DUOS Incl GST'!J11+'2017 TUOS Incl GST'!J11 -> 0 | K11: ='2017 DUOS Incl GST'!K11+'2017 TUOS Incl GST'!K11 -> 1.5081 | L11: ='2017 DUOS Incl GST'!L11+'2017 TUOS Incl GST'!L11 -> 0 | M11: ='2017 DUOS Incl GST'!M11+'2017 TUOS Incl GST'!M11 -> 87.6909 | N11: ='2017 DUOS Incl GST'!N11+'2017 TUOS Incl GST'!N11 -> 0 | O11: ='2017 DUOS Incl GST'!O11+'2017 TUOS Incl GST'!O11 -> 0 | P11: ='2017 DUOS Incl GST'!P11+'2017 TUOS Incl GST'!P11 -> 0 | Q11: ='2017 DUOS Incl GST'!Q11+'2017 TUOS Incl GST'!Q11 -> 0
B12: Low voltage medium 1 rate | C12: LVM1R | D12: F | E12: ='2017 DUOS Incl GST'!E12+'2017 TUOS Incl GST'!E12 -> 12.0857 | F12: ='2017 DUOS Incl GST'!F12+'2017 TUOS Incl GST'!F12 -> 13.2979 | G12: ='2017 DUOS Incl GST'!G12+'2017 TUOS Incl GST'!G12 -> 8.7648 | H12: ='2017 DUOS Incl GST'!H12+'2017 TUOS Incl GST'!H12 -> 0 | I12: ='2017 DUOS Incl GST'!I12+'2017 TUOS Incl GST'!I12 -> 0 | J12: ='2017 DUOS Incl GST'!J12+'2017 TUOS Incl GST'!J12 -> 0 | K12: ='2017 DUOS Incl GST'!K12+'2017 TUOS Incl GST'!K12 -> 0 | L12: ='2017 DUOS Incl GST'!L12+'2017 TUOS Incl GST'!L12 -> 0 | M12: ='2017 DUOS Incl GST'!M12+'2017 TUOS Incl GST'!M12 -> 0 | N12: ='2017 DUOS Incl GST'!N12+'2017 TUOS Incl GST'!N12 -> 0 | O12: ='2017 DUOS Incl GST'!O12+'2017 TUOS Incl GST'!O12 -> 0 | P12: ='2017 DUOS Incl GST'!P12+'2017 TUOS Incl GST'!P12 -> 0 | Q12: ='2017 DUOS Incl GST'!Q12+'2017 TUOS Incl GST'!Q12 -> 0 | R12: NA | S12: >20 & <400
B13: Low voltage medium 2 rate 5 day* | C13: LVM2R5D* | E13: ='2017 DUOS Incl GST'!E13+'2017 TUOS Incl GST'!E13 -> 23.133 | F13: ='2017 DUOS Incl GST'!F13+'2017 TUOS Incl GST'!F13 -> 13.5498 | G13: ='2017 DUOS Incl GST'!G13+'2017 TUOS Incl GST'!G13 -> 10.2707 | H13: ='2017 DUOS Incl GST'!H13+'2017 TUOS Incl GST'!H13 -> 0 | I13: ='2017 DUOS Incl GST'!I13+'2017 TUOS Incl GST'!I13 -> 0 | J13: ='2017 DUOS Incl GST'!J13+'2017 TUOS Incl GST'!J13 -> 0 | K13: ='2017 DUOS Incl GST'!K13+'2017 TUOS Incl GST'!K13 -> 2.0977 | L13: ='2017 DUOS Incl GST'!L13+'2017 TUOS Incl GST'!L13 -> 0 | M13: ='2017 DUOS Incl GST'!M13+'2017 TUOS Incl GST'!M13 -> 0 | N13: ='2017 DUOS Incl GST'!N13+'2017 TUOS Incl GST'!N13 -> 0 | O13: ='2017 DUOS Incl GST'!O13+'2017 TUOS Incl GST'!O13 -> 0 | P13: ='2017 DUOS Incl GST'!P13+'2017 TUOS Incl GST'!P13 -> 0 | Q13: ='2017 DUOS Incl GST'!Q13+'2017 TUOS Incl GST'!Q13 -> 0
B14: Low voltage medium 2 rate 7 day* | C14: LVM2R7D* | E14: ='2017 DUOS Incl GST'!E14+'2017 TUOS Incl GST'!E14 -> 24.6257 | F14: ='2017 DUOS Incl GST'!F14+'2017 TUOS Incl GST'!F14 -> 13.4486 | G14: ='2017 DUOS Incl GST'!G14+'2017 TUOS Incl GST'!G14 -> 10.4863 | H14: ='2017 DUOS Incl GST'!H14+'2017 TUOS Incl GST'!H14 -> 0 | I14: ='2017 DUOS Incl GST'!I14+'2017 TUOS Incl GST'!I14 -> 0 | J14: ='2017 DUOS Incl GST'!J14+'2017 TUOS Incl GST'!J14 -> 0 | K14: ='2017 DUOS Incl GST'!K14+'2017 TUOS Incl GST'!K14 -> 1.9503 | L14: ='2017 DUOS Incl GST'!L14+'2017 TUOS Incl GST'!L14 -> 0 | M14: ='2017 DUOS Incl GST'!M14+'2017 TUOS Incl GST'!M14 -> 0 | N14: ='2017 DUOS Incl GST'!N14+'2017 TUOS Incl GST'!N14 -> 0 | O14: ='2017 DUOS Incl GST'!O14+'2017 TUOS Incl GST'!O14 -> 0 | P14: ='2017 DUOS Incl GST'!P14+'2017 TUOS Incl GST'!P14 -> 0 | Q14: ='2017 DUOS Incl GST'!Q14+'2017 TUOS Incl GST'!Q14 -> 0
B15: Low voltage KW time of use* | C15: LVkWTOU* | E15: ='2017 DUOS Incl GST'!E15+'2017 TUOS Incl GST'!E15 -> 0 | F15: ='2017 DUOS Incl GST'!F15+'2017 TUOS Incl GST'!F15 -> 11.3905 | G15: ='2017 DUOS Incl GST'!G15+'2017 TUOS Incl GST'!G15 -> 7.1324 | H15: ='2017 DUOS Incl GST'!H15+'2017 TUOS Incl GST'!H15 -> 0 | I15: ='2017 DUOS Incl GST'!I15+'2017 TUOS Incl GST'!I15 -> 0 | J15: ='2017 DUOS Incl GST'!J15+'2017 TUOS Incl GST'!J15 -> 0 | K15: ='2017 DUOS Incl GST'!K15+'2017 TUOS Incl GST'!K15 -> 2.1527 | L15: ='2017 DUOS Incl GST'!L15+'2017 TUOS Incl GST'!L15 -> 0 | M15: ='2017 DUOS Incl GST'!M15+'2017 TUOS Incl GST'!M15 -> 54.2795 | N15: ='2017 DUOS Incl GST'!N15+'2017 TUOS Incl GST'!N15 -> 0 | O15: ='2017 DUOS Incl GST'!O15+'2017 TUOS Incl GST'!O15 -> 0 | P15: ='2017 DUOS Incl GST'!P15+'2017 TUOS Incl GST'!P15 -> 0 | Q15: ='2017 DUOS Incl GST'!Q15+'2017 TUOS Incl GST'!Q15 -> 0
B16: Low voltage KW time of use - HOT* | C16: LVkWTOUH* | E16: ='2017 DUOS Incl GST'!E16+'2017 TUOS Incl GST'!E16 -> 0 | F16: ='2017 DUOS Incl GST'!F16+'2017 TUOS Incl GST'!F16 -> 9.2224 | G16: ='2017 DUOS Incl GST'!G16+'2017 TUOS Incl GST'!G16 -> 7.1258 | H16: ='2017 DUOS Incl GST'!H16+'2017 TUOS Incl GST'!H16 -> 0 | I16: ='2017 DUOS Incl GST'!I16+'2017 TUOS Incl GST'!I16 -> 0 | J16: ='2017 DUOS Incl GST'!J16+'2017 TUOS Incl GST'!J16 -> 0 | K16: ='2017 DUOS Incl GST'!K16+'2017 TUOS Incl GST'!K16 -> 1.8183 | L16: ='2017 DUOS Incl GST'!L16+'2017 TUOS Incl GST'!L16 -> 0 | M16: ='2017 DUOS Incl GST'!M16+'2017 TUOS Incl GST'!M16 -> 81.3527 | N16: ='2017 DUOS Incl GST'!N16+'2017 TUOS Incl GST'!N16 -> 0 | O16: ='2017 DUOS Incl GST'!O16+'2017 TUOS Incl GST'!O16 -> 0 | P16: ='2017 DUOS Incl GST'!P16+'2017 TUOS Incl GST'!P16 -> 0 | Q16: ='2017 DUOS Incl GST'!Q16+'2017 TUOS Incl GST'!Q16 -> 0
B17: Low voltage large 1 rate* | C17: LVL1R* | E17: ='2017 DUOS Incl GST'!E17+'2017 TUOS Incl GST'!E17 -> 13.9227 | F17: ='2017 DUOS Incl GST'!F17+'2017 TUOS Incl GST'!F17 -> 9.0431 | G17: ='2017 DUOS Incl GST'!G17+'2017 TUOS Incl GST'!G17 -> 7.1621 | H17: ='2017 DUOS Incl GST'!H17+'2017 TUOS Incl GST'!H17 -> 0 | I17: ='2017 DUOS Incl GST'!I17+'2017 TUOS Incl GST'!I17 -> 0 | J17: ='2017 DUOS Incl GST'!J17+'2017 TUOS Incl GST'!J17 -> 0 | K17: ='2017 DUOS Incl GST'!K17+'2017 TUOS Incl GST'!K17 -> 0 | L17: ='2017 DUOS Incl GST'!L17+'2017 TUOS Incl GST'!L17 -> 0 | M17: ='2017 DUOS Incl GST'!M17+'2017 TUOS Incl GST'!M17 -> 0 | N17: ='2017 DUOS Incl GST'!N17+'2017 TUOS Incl GST'!N17 -> 0 | O17: ='2017 DUOS Incl GST'!O17+'2017 TUOS Incl GST'!O17 -> 0 | P17: ='2017 DUOS Incl GST'!P17+'2017 TUOS Incl GST'!P17 -> 0 | Q17: ='2017 DUOS Incl GST'!Q17+'2017 TUOS Incl GST'!Q17 -> 0
B18: Low voltage large 2 rate* | C18: LVL2R* | E18: ='2017 DUOS Incl GST'!E18+'2017 TUOS Incl GST'!E18 -> 20.0838 | F18: ='2017 DUOS Incl GST'!F18+'2017 TUOS Incl GST'!F18 -> 12.0318 | G18: ='2017 DUOS Incl GST'!G18+'2017 TUOS Incl GST'!G18 -> 9.5788 | H18: ='2017 DUOS Incl GST'!H18+'2017 TUOS Incl GST'!H18 -> 0 | I18: ='2017 DUOS Incl GST'!I18+'2017 TUOS Incl GST'!I18 -> 0 | J18: ='2017 DUOS Incl GST'!J18+'2017 TUOS Incl GST'!J18 -> 0 | K18: ='2017 DUOS Incl GST'!K18+'2017 TUOS Incl GST'!K18 -> 1.8997 | L18: ='2017 DUOS Incl GST'!L18+'2017 TUOS Incl GST'!L18 -> 0 | M18: ='2017 DUOS Incl GST'!M18+'2017 TUOS Incl GST'!M18 -> 0 | N18: ='2017 DUOS Incl GST'!N18+'2017 TUOS Incl GST'!N18 -> 0 | O18: ='2017 DUOS Incl GST'!O18+'2017 TUOS Incl GST'!O18 -> 0 | P18: ='2017 DUOS Incl GST'!P18+'2017 TUOS Incl GST'!P18 -> 0 | Q18: ='2017 DUOS Incl GST'!Q18+'2017 TUOS Incl GST'!Q18 -> 0
B19: Low voltage large KVA time of use | C19: LVkVATOU | E19: ='2017 DUOS Incl GST'!E19+'2017 TUOS Incl GST'!E19 -> 0 | F19: ='2017 DUOS Incl GST'!F19+'2017 TUOS Incl GST'!F19 -> 2.6048 | G19: ='2017 DUOS Incl GST'!G19+'2017 TUOS Incl GST'!G19 -> 2.1549 | H19: ='2017 DUOS Incl GST'!H19+'2017 TUOS Incl GST'!H19 -> 0 | I19: ='2017 DUOS Incl GST'!I19+'2017 TUOS Incl GST'!I19 -> 0 | J19: ='2017 DUOS Incl GST'!J19+'2017 TUOS Incl GST'!J19 -> 0 | K19: ='2017 DUOS Incl GST'!K19+'2017 TUOS Incl GST'!K19 -> 1.2045 | L19: ='2017 DUOS Incl GST'!L19+'2017 TUOS Incl GST'!L19 -> 19.2621 | M19: ='2017 DUOS Incl GST'!M19+'2017 TUOS Incl GST'!M19 -> 28.1391 | N19: ='2017 DUOS Incl GST'!N19+'2017 TUOS Incl GST'!N19 -> 0 | O19: ='2017 DUOS Incl GST'!O19+'2017 TUOS Incl GST'!O19 -> 0 | P19: ='2017 DUOS Incl GST'!P19+'2017 TUOS Incl GST'!P19 -> 0 | Q19: ='2017 DUOS Incl GST'!Q19+'2017 TUOS Incl GST'!Q19 -> 0 | R19: >150 | S19: >400 | T19: 150
B20: Low voltage large KVA time of use - HOT* | C20: LVkVATOUH* | E20: ='2017 DUOS Incl GST'!E20+'2017 TUOS Incl GST'!E20 -> 0 | F20: ='2017 DUOS Incl GST'!F20+'2017 TUOS Incl GST'!F20 -> 1.991 | G20: ='2017 DUOS Incl GST'!G20+'2017 TUOS Incl GST'!G20 -> 1.628 | H20: ='2017 DUOS Incl GST'!H20+'2017 TUOS Incl GST'!H20 -> 0 | I20: ='2017 DUOS Incl GST'!I20+'2017 TUOS Incl GST'!I20 -> 0 | J20: ='2017 DUOS Incl GST'!J20+'2017 TUOS Incl GST'!J20 -> 0 | K20: ='2017 DUOS Incl GST'!K20+'2017 TUOS Incl GST'!K20 -> 1.0296 | L20: ='2017 DUOS Incl GST'!L20+'2017 TUOS Incl GST'!L20 -> 17.4295 | M20: ='2017 DUOS Incl GST'!M20+'2017 TUOS Incl GST'!M20 -> 41.9287 | N20: ='2017 DUOS Incl GST'!N20+'2017 TUOS Incl GST'!N20 -> 0 | O20: ='2017 DUOS Incl GST'!O20+'2017 TUOS Incl GST'!O20 -> 0 | P20: ='2017 DUOS Incl GST'!P20+'2017 TUOS Incl GST'!P20 -> 0 | Q20: ='2017 DUOS Incl GST'!Q20+'2017 TUOS Incl GST'!Q20 -> 0 | T20: 150
B21: High voltage KVA time of use | C21: HVkVATOU | E21: ='2017 DUOS Incl GST'!E21+'2017 TUOS Incl GST'!E21 -> 0 | F21: ='2017 DUOS Incl GST'!F21+'2017 TUOS Incl GST'!F21 -> 1.6863 | G21: ='2017 DUOS Incl GST'!G21+'2017 TUOS Incl GST'!G21 -> 1.4212 | H21: ='2017 DUOS Incl GST'!H21+'2017 TUOS Incl GST'!H21 -> 0 | I21: ='2017 DUOS Incl GST'!I21+'2017 TUOS Incl GST'!I21 -> 0 | J21: ='2017 DUOS Incl GST'!J21+'2017 TUOS Incl GST'!J21 -> 0 | K21: ='2017 DUOS Incl GST'!K21+'2017 TUOS Incl GST'!K21 -> 0.7502 | L21: ='2017 DUOS Incl GST'!L21+'2017 TUOS Incl GST'!L21 -> 14.2791 | M21: ='2017 DUOS Incl GST'!M21+'2017 TUOS Incl GST'!M21 -> 17.8409 | N21: ='2017 DUOS Incl GST'!N21+'2017 TUOS Incl GST'!N21 -> 0 | O21: ='2017 DUOS Incl GST'!O21+'2017 TUOS Incl GST'!O21 -> 0 | P21: ='2017 DUOS Incl GST'!P21+'2017 TUOS Incl GST'!P21 -> 0 | Q21: ='2017 DUOS Incl GST'!Q21+'2017 TUOS Incl GST'!Q21 -> 0 | R21: >150 | S21: >400 | T21: 1150
B22: High voltage KVA time of use - HOT* | C22: HVkVATOUH* | E22: ='2017 DUOS Incl GST'!E22+'2017 TUOS Incl GST'!E22 -> 0 | F22: ='2017 DUOS Incl GST'!F22+'2017 TUOS Incl GST'!F22 -> 1.3684 | G22: ='2017 DUOS Incl GST'!G22+'2017 TUOS Incl GST'!G22 -> 1.1165 | H22: ='2017 DUOS Incl GST'!H22+'2017 TUOS Incl GST'!H22 -> 0 | I22: ='2017 DUOS Incl GST'!I22+'2017 TUOS Incl GST'!I22 -> 0 | J22: ='2017 DUOS Incl GST'!J22+'2017 TUOS Incl GST'!J22 -> 0 | K22: ='2017 DUOS Incl GST'!K22+'2017 TUOS Incl GST'!K22 -> 0.7315 | L22: ='2017 DUOS Incl GST'!L22+'2017 TUOS Incl GST'!L22 -> 13.299 | M22: ='2017 DUOS Incl GST'!M22+'2017 TUOS Incl GST'!M22 -> 30.9408 | N22: ='2017 DUOS Incl GST'!N22+'2017 TUOS Incl GST'!N22 -> 0 | O22: ='2017 DUOS Incl GST'!O22+'2017 TUOS Incl GST'!O22 -> 0 | P22: ='2017 DUOS Incl GST'!P22+'2017 TUOS Incl GST'!P22 -> 0 | Q22: ='2017 DUOS Incl GST'!Q22+'2017 TUOS Incl GST'!Q22 -> 0 | T22: 1150
B23: Subtransmission KVA time of use* | C23: SubTkVATOU* | E23: ='2017 DUOS Incl GST'!E23+'2017 TUOS Incl GST'!E23 -> 0 | F23: ='2017 DUOS Incl GST'!F23+'2017 TUOS Incl GST'!F23 -> 1.0472 | G23: ='2017 DUOS Incl GST'!G23+'2017 TUOS Incl GST'!G23 -> 0.8305 | H23: ='2017 DUOS Incl GST'!H23+'2017 TUOS Incl GST'!H23 -> 0 | I23: ='2017 DUOS Incl GST'!I23+'2017 TUOS Incl GST'!I23 -> 0 | J23: ='2017 DUOS Incl GST'!J23+'2017 TUOS Incl GST'!J23 -> 0 | K23: ='2017 DUOS Incl GST'!K23+'2017 TUOS Incl GST'!K23 -> 0.3322 | L23: ='2017 DUOS Incl GST'!L23+'2017 TUOS Incl GST'!L23 -> 4.7916 | M23: ='2017 DUOS Incl GST'!M23+'2017 TUOS Incl GST'!M23 -> 6.0313 | N23: ='2017 DUOS Incl GST'!N23+'2017 TUOS Incl GST'!N23 -> 0 | O23: ='2017 DUOS Incl GST'!O23+'2017 TUOS Incl GST'!O23 -> 0 | P23: ='2017 DUOS Incl GST'!P23+'2017 TUOS Incl GST'!P23 -> 0 | Q23: ='2017 DUOS Incl GST'!Q23+'2017 TUOS Incl GST'!Q23 -> 0 | T23: 11100
B24: Time of Day | C24: TOD | D24: F | E24: ='2017 DUOS Incl GST'!E24+'2017 TUOS Incl GST'!E24 -> 6.9608 | F24: ='2017 DUOS Incl GST'!F24+'2017 TUOS Incl GST'!F24 -> 20.4215 | G24: ='2017 DUOS Incl GST'!G24+'2017 TUOS Incl GST'!G24 -> 12.9921 | H24: ='2017 DUOS Incl GST'!H24+'2017 TUOS Incl GST'!H24 -> 0 | I24: ='2017 DUOS Incl GST'!I24+'2017 TUOS Incl GST'!I24 -> 7.8463 | J24: ='2017 DUOS Incl GST'!J24+'2017 TUOS Incl GST'!J24 -> 6.2381 | K24: ='2017 DUOS Incl GST'!K24+'2017 TUOS Incl GST'!K24 -> 3.2263 | L24: ='2017 DUOS Incl GST'!L24+'2017 TUOS Incl GST'!L24 -> 0 | M24: ='2017 DUOS Incl GST'!M24+'2017 TUOS Incl GST'!M24 -> 0 | N24: ='2017 DUOS Incl GST'!N24+'2017 TUOS Incl GST'!N24 -> 0 | O24: ='2017 DUOS Incl GST'!O24+'2017 TUOS Incl GST'!O24 -> 0 | P24: ='2017 DUOS Incl GST'!P24+'2017 TUOS Incl GST'!P24 -> 0 | Q24: ='2017 DUOS Incl GST'!Q24+'2017 TUOS Incl GST'!Q24 -> 0 | R24: NA | S24: <20
B25: Time of Use | C25: TOU | D25: F | E25: ='2017 DUOS Incl GST'!E25+'2017 TUOS Incl GST'!E25 -> 0 | F25: ='2017 DUOS Incl GST'!F25+'2017 TUOS Incl GST'!F25 -> 12.7457 | G25: ='2017 DUOS Incl GST'!G25+'2017 TUOS Incl GST'!G25 -> 7.337 | H25: ='2017 DUOS Incl GST'!H25+'2017 TUOS Incl GST'!H25 -> 0 | I25: ='2017 DUOS Incl GST'!I25+'2017 TUOS Incl GST'!I25 -> 0 | J25: ='2017 DUOS Incl GST'!J25+'2017 TUOS Incl GST'!J25 -> 0 | K25: ='2017 DUOS Incl GST'!K25+'2017 TUOS Incl GST'!K25 -> 2.9348 | L25: ='2017 DUOS Incl GST'!L25+'2017 TUOS Incl GST'!L25 -> 0 | M25: ='2017 DUOS Incl GST'!M25+'2017 TUOS Incl GST'!M25 -> 50.6308 | N25: ='2017 DUOS Incl GST'!N25+'2017 TUOS Incl GST'!N25 -> 0 | O25: ='2017 DUOS Incl GST'!O25+'2017 TUOS Incl GST'!O25 -> 0 | P25: ='2017 DUOS Incl GST'!P25+'2017 TUOS Incl GST'!P25 -> 0 | Q25: ='2017 DUOS Incl GST'!Q25+'2017 TUOS Incl GST'!Q25 -> 0 | R25: NA | S25: >20 & <400
B26: Time of Day 9pm off-peak | C26: TOD9 | D26: F | E26: ='2017 DUOS Incl GST'!E26+'2017 TUOS Incl GST'!E26 -> 7.2204 | F26: ='2017 DUOS Incl GST'!F26+'2017 TUOS Incl GST'!F26 -> 23.8172 | G26: ='2017 DUOS Incl GST'!G26+'2017 TUOS Incl GST'!G26 -> 16.3262 | H26: ='2017 DUOS Incl GST'!H26+'2017 TUOS Incl GST'!H26 -> 0 | I26: ='2017 DUOS Incl GST'!I26+'2017 TUOS Incl GST'!I26 -> 10.45 | J26: ='2017 DUOS Incl GST'!J26+'2017 TUOS Incl GST'!J26 -> 9.0706 | K26: ='2017 DUOS Incl GST'!K26+'2017 TUOS Incl GST'!K26 -> 4.4693 | L26: ='2017 DUOS Incl GST'!L26+'2017 TUOS Incl GST'!L26 -> 0 | M26: ='2017 DUOS Incl GST'!M26+'2017 TUOS Incl GST'!M26 -> 0 | N26: ='2017 DUOS Incl GST'!N26+'2017 TUOS Incl GST'!N26 -> 0 | O26: ='2017 DUOS Incl GST'!O26+'2017 TUOS Incl GST'!O26 -> 0 | P26: ='2017 DUOS Incl GST'!P26+'2017 TUOS Incl GST'!P26 -> 0 | Q26: ='2017 DUOS Incl GST'!Q26+'2017 TUOS Incl GST'!Q26 -> 0 | R26: NA | S26: <20
B27: Time of Day Flexible | C27: TODFLEX | D27: F | E27: ='2017 DUOS Incl GST'!E27+'2017 TUOS Incl GST'!E27 -> 7.7759 | F27: ='2017 DUOS Incl GST'!F27+'2017 TUOS Incl GST'!F27 -> 22.7469 | G27: ='2017 DUOS Incl GST'!G27+'2017 TUOS Incl GST'!G27 -> 14.5585 | H27: ='2017 DUOS Incl GST'!H27+'2017 TUOS Incl GST'!H27 -> 0 | I27: ='2017 DUOS Incl GST'!I27+'2017 TUOS Incl GST'!I27 -> 7.1313 | J27: ='2017 DUOS Incl GST'!J27+'2017 TUOS Incl GST'!J27 -> 6.8849 | K27: ='2017 DUOS Incl GST'!K27+'2017 TUOS Incl GST'!K27 -> 4.2735 | L27: ='2017 DUOS Incl GST'!L27+'2017 TUOS Incl GST'!L27 -> 0 | M27: ='2017 DUOS Incl GST'!M27+'2017 TUOS Incl GST'!M27 -> 0 | N27: ='2017 DUOS Incl GST'!N27+'2017 TUOS Incl GST'!N27 -> 0 | O27: ='2017 DUOS Incl GST'!O27+'2017 TUOS Incl GST'!O27 -> 0 | P27: ='2017 DUOS Incl GST'!P27+'2017 TUOS Incl GST'!P27 -> 0 | Q27: ='2017 DUOS Incl GST'!Q27+'2017 TUOS Incl GST'!Q27 -> 0 | R27: Residential Customer
B28: Low voltage KW 1 rate1 | C28: RESKW1R1 | D28: F | E28: ='2017 DUOS Incl GST'!E28+'2017 TUOS Incl GST'!E28 -> 0 | F28: ='2017 DUOS Incl GST'!F28+'2017 TUOS Incl GST'!F28 -> 3.6597 | G28: ='2017 DUOS Incl GST'!G28+'2017 TUOS Incl GST'!G28 -> 3.6597 | H28: ='2017 DUOS Incl GST'!H28+'2017 TUOS Incl GST'!H28 -> 3.6597 | I28: ='2017 DUOS Incl GST'!I28+'2017 TUOS Incl GST'!I28 -> 3.6597 | J28: ='2017 DUOS Incl GST'!J28+'2017 TUOS Incl GST'!J28 -> 3.6597 | K28: ='2017 DUOS Incl GST'!K28+'2017 TUOS Incl GST'!K28 -> 3.6597 | L28: ='2017 DUOS Incl GST'!L28+'2017 TUOS Incl GST'!L28 -> 0 | M28: ='2017 DUOS Incl GST'!M28+'2017 TUOS Incl GST'!M28 -> 0 | N28: ='2017 DUOS Incl GST'!N28+'2017 TUOS Incl GST'!N28 -> 33.6138 | O28: ='2017 DUOS Incl GST'!O28+'2017 TUOS Incl GST'!O28 -> 14.7367 | P28: ='2017 DUOS Incl GST'!P28+'2017 TUOS Incl GST'!P28 -> 0 | Q28: ='2017 DUOS Incl GST'!Q28+'2017 TUOS Incl GST'!Q28 -> 0 | R28: NA | S28: <20 | U28: 1.5
B29: Low Voltage Medium kW Time of Use (Opt-in)2 | C29: LVMKWTOU2 | D29: F | E29: ='2017 DUOS Incl GST'!E29+'2017 TUOS Incl GST'!E29 -> 0 | F29: ='2017 DUOS Incl GST'!F29+'2017 TUOS Incl GST'!F29 -> 4.796 | G29: ='2017 DUOS Incl GST'!G29+'2017 TUOS Incl GST'!G29 -> 4.796 | H29: ='2017 DUOS Incl GST'!H29+'2017 TUOS Incl GST'!H29 -> 4.796 | I29: ='2017 DUOS Incl GST'!I29+'2017 TUOS Incl GST'!I29 -> 4.796 | J29: ='2017 DUOS Incl GST'!J29+'2017 TUOS Incl GST'!J29 -> 4.796 | K29: ='2017 DUOS Incl GST'!K29+'2017 TUOS Incl GST'!K29 -> 4.796 | L29: ='2017 DUOS Incl GST'!L29+'2017 TUOS Incl GST'!L29 -> 0 | M29: ='2017 DUOS Incl GST'!M29+'2017 TUOS Incl GST'!M29 -> 0 | N29: ='2017 DUOS Incl GST'!N29+'2017 TUOS Incl GST'!N29 -> 39.6682 | O29: ='2017 DUOS Incl GST'!O29+'2017 TUOS Incl GST'!O29 -> 26.4462 | P29: ='2017 DUOS Incl GST'!P29+'2017 TUOS Incl GST'!P29 -> 0 | Q29: ='2017 DUOS Incl GST'!Q29+'2017 TUOS Incl GST'!Q29 -> 0 | R29: NA | S29: >20 & <400 | U29: 1.5
B30: Low Voltage Medium kW 1 rate (Mandatory)3 | C30: LVMKW1R3 | D30: F | E30: ='2017 DUOS Incl GST'!E30+'2017 TUOS Incl GST'!E30 -> 0 | F30: ='2017 DUOS Incl GST'!F30+'2017 TUOS Incl GST'!F30 -> 7.3326 | G30: ='2017 DUOS Incl GST'!G30+'2017 TUOS Incl GST'!G30 -> 7.3326 | H30: ='2017 DUOS Incl GST'!H30+'2017 TUOS Incl GST'!H30 -> 7.3326 | I30: ='2017 DUOS Incl GST'!I30+'2017 TUOS Incl GST'!I30 -> 7.3326 | J30: ='2017 DUOS Incl GST'!J30+'2017 TUOS Incl GST'!J30 -> 7.3326 | K30: ='2017 DUOS Incl GST'!K30+'2017 TUOS Incl GST'!K30 -> 7.3326 | L30: ='2017 DUOS Incl GST'!L30+'2017 TUOS Incl GST'!L30 -> 0 | M30: ='2017 DUOS Incl GST'!M30+'2017 TUOS Incl GST'!M30 -> 0 | N30: ='2017 DUOS Incl GST'!N30+'2017 TUOS Incl GST'!N30 -> 24.5707 | O30: ='2017 DUOS Incl GST'!O30+'2017 TUOS Incl GST'!O30 -> 16.3801 | P30: ='2017 DUOS Incl GST'!P30+'2017 TUOS Incl GST'!P30 -> 0 | Q30: ='2017 DUOS Incl GST'!Q30+'2017 TUOS Incl GST'!Q30 -> 0 | R30: NA | S30: >40 & <400 | U30: 1.5
B33: * Tariff closed to premises not already taking supply under this tariff and new connections.
B34: ** Tariff only available in conjunction with the LVS1R tariff for new connections.
B35: Summer peak energy rates apply for period 1st November to 31st March (except TODFLEX which follows daylight savings periods) & RESKWTOU which applies from 1st December to 31st March.
B36: Non-summer peak energy rates apply for period 1st April to 31st October (except TODFLEX which follows non-daylight savings periods) & RESKWTOU which applies from 1st April to 30th November.
B37: PFIT (Premium Feed-In Tariff) is defined by an “F” added to the front of an existing distribution tariff ie. FTOD. The PFIT tariffs are closed to new connections.
B38: 1 RESKW1R csutomers transitioned from RESKWTOU on 1 April 2016.
B39: 2 LVMKWTOU available from 1st July 2016 for low voltage business customers with energy consumption between 20-40MWh per annum as an opt-in transition.
B40: 3 LVMKW1R available from 1st January 2017 for low voltage business customers with energy consumption between 40-400MWh per annum as a mandatory transition.

Sheet PFIT TFIT Ex GST
A1: UED PFIT/TFIT pass through charge: 1 January 2017 (GST Exclusive)
A2: UED Network Tariff Description | B2: UED Tariff Code | C2: PFIT/TFIT Pass Through Charge (c/cust/day)
A3: Low voltage small 1 rate | B3: LVS1R | C3: 6.247
A4: Low voltage small 2 rate* | B4: LVS2R* | C4: 6.247
A5: Dedicated circuit** | B5: LVDed**
A6: Unmetered supplies | B6: UnMet
A7: Winter Energy Tariff* | B7: WET2Step* | C7: 6.247
A8: Reverse cycle airconditioning time of use* | B8: RCACkWTOU* | C8: 6.247
A9: Low voltage medium 1 rate | B9: LVM1R | C9: 6.247
A10: Low voltage medium 2 rate 5 day* | B10: LVM2R5D* | C10: 6.247
A11: Low voltage medium 2 rate 7 day* | B11: LVM2R7D* | C11: 6.247
A12: Low voltage KW time of use* | B12: LVkWTOU* | C12: 6.247
A13: Low voltage KW time of use - HOT* | B13: LVkWTOUH* | C13: 6.247
A14: Low voltage large 1 rate* | B14: LVL1R* | C14: 6.247
A15: Low voltage large 2 rate* | B15: LVL2R* | C15: 6.247
A16: Low voltage large KVA time of use | B16: LVkVATOU | C16: 6.247
A17: Low voltage large KVA time of use - HOT* | B17: LVkVATOUH* | C17: 6.247
A18: High voltage KVA time of use | B18: HVkVATOU | C18: 6.247
A19: High voltage KVA time of use - HOT* | B19: HVkVATOUH* | C19: 6.247
A20: Subtransmission KVA time of use* | B20: SubTkVATOU* | C20: 6.247
A21: Time of Day | B21: TOD | C21: 6.247
A22: Time of Use | B22: TOU | C22: 6.247
A23: Time of Day 9pm off-peak | B23: TOD9 | C23: 6.247
A24: Time of Day Flexible | B24: TODFLEX | C24: 6.247
A25: Low voltage KW 1 rate | B25: RESKW1R | C25: 6.247
A26: Low Voltage Medium kW Time of Use (Opt-in) | B26: LVMKWTOU | C26: 6.247
A27: Low Voltage Medium kW 1 rate (Mandatory) | B27: LVMKW1R | C27: 6.247
A29: * Tariff closed to premises not already taking supply under this tariff and new connections.

Sheet PFIT TFIT Incl GST
A1: UED PFIT/TFIT pass through charge: 1 January 2017 (GST Inclusive)
A2: UED Network Tariff Description | B2: UED Tariff Code | C2: PFIT/TFIT Pass Through Charge (c/cust/day)
A3: Low voltage small 1 rate | B3: LVS1R | C3: ='PFIT TFIT Ex GST'!C3*1.1 -> 6.8717
A4: Low voltage small 2 rate* | B4: LVS2R* | C4: ='PFIT TFIT Ex GST'!C4*1.1 -> 6.8717
A5: Dedicated circuit** | B5: LVDed**
A6: Unmetered supplies | B6: UnMet
A7: Winter Energy Tariff* | B7: WET2Step* | C7: ='PFIT TFIT Ex GST'!C7*1.1 -> 6.8717
A8: Reverse cycle airconditioning time of use* | B8: RCACkWTOU* | C8: ='PFIT TFIT Ex GST'!C8*1.1 -> 6.8717
A9: Low voltage medium 1 rate | B9: LVM1R | C9: ='PFIT TFIT Ex GST'!C9*1.1 -> 6.8717
A10: Low voltage medium 2 rate 5 day* | B10: LVM2R5D* | C10: ='PFIT TFIT Ex GST'!C10*1.1 -> 6.8717
A11: Low voltage medium 2 rate 7 day* | B11: LVM2R7D* | C11: ='PFIT TFIT Ex GST'!C11*1.1 -> 6.8717
A12: Low voltage KW time of use* | B12: LVkWTOU* | C12: ='PFIT TFIT Ex GST'!C12*1.1 -> 6.8717
A13: Low voltage KW time of use - HOT* | B13: LVkWTOUH* | C13: ='PFIT TFIT Ex GST'!C13*1.1 -> 6.8717
A14: Low voltage large 1 rate* | B14: LVL1R* | C14: ='PFIT TFIT Ex GST'!C14*1.1 -> 6.8717
A15: Low voltage large 2 rate* | B15: LVL2R* | C15: ='PFIT TFIT Ex GST'!C15*1.1 -> 6.8717
A16: Low voltage large KVA time of use | B16: LVkVATOU | C16: ='PFIT TFIT Ex GST'!C16*1.1 -> 6.8717
A17: Low voltage large KVA time of use - HOT* | B17: LVkVATOUH* | C17: ='PFIT TFIT Ex GST'!C17*1.1 -> 6.8717
A18: High voltage KVA time of use | B18: HVkVATOU | C18: ='PFIT TFIT Ex GST'!C18*1.1 -> 6.8717
A19: High voltage KVA time of use - HOT* | B19: HVkVATOUH* | C19: ='PFIT TFIT Ex GST'!C19*1.1 -> 6.8717
A20: Subtransmission KVA time of use* | B20: SubTkVATOU* | C20: ='PFIT TFIT Ex GST'!C20*1.1 -> 6.8717
A21: Time of Day | B21: TOD | C21: ='PFIT TFIT Ex GST'!C21*1.1 -> 6.8717
A22: Time of Use | B22: TOU | C22: ='PFIT TFIT Ex GST'!C22*1.1 -> 6.8717
A23: Time of Day 9pm off-peak | B23: TOD9 | C23: ='PFIT TFIT Ex GST'!C23*1.1 -> 6.8717
A24: Time of Day Flexible | B24: TODFLEX | C24: ='PFIT TFIT Ex GST'!C24*1.1 -> 6.8717
A25: Low voltage KW 1 rate | B25: RESKW1R | C25: ='PFIT TFIT Ex GST'!C25*1.1 -> 6.8717
A26: Low Voltage Medium kW Time of Use (Opt-in) | B26: LVMKWTOU | C26: ='PFIT TFIT Ex GST'!C26*1.1 -> 6.8717
A27: Low Voltage Medium kW 1 rate (Mandatory) | B27: LVMKW1R | C27: ='PFIT TFIT Ex GST'!C27*1.1 -> 6.8717
A29: * Tariff closed to premises not already taking supply under this tariff and new connections.

Sheet Prescribed Ex GST
A1: 2017 Prescribed Metering Service Charges (GST Exclusive)
A3: Metering Data Services (Unmetered Supplies) | B3: $/light/annum
A4: Per light | B4: 1.322

Sheet Prescribed Incl GST
A1: 2017 Prescribed Metering Service Charges (GST Inclusive)
A3: Metering Data Services (Unmetered Supplies) | B3: $/light/annum
A4: Per light | B4: ='Prescribed Ex GST'!B4*1.1 -> 1.4542
